{"text_format":"1","workbook":"xlsx","n_sheets":7,"sheets":["Index","General Info","Financial Results","Taxonomy","Asset Liabilities","Segment","TextBlock"],"not_rendered":{"charts":0,"images":1,"macros":1,"external_links":0,"defined_names":3,"comments":0,"pivot_tables":0},"unopened":[],"bounds":{"document_bytes":16777216,"sheet_cells":100000,"rows_first":2000,"rows_last":500,"rows_between":2000,"halvings":0,"cell_chars":16384,"cell_head_chars":4096},"cells_cut":0,"cells_raw":0,"read":"whole","date_system":"1900"}

{"sheet":"Index","index":0,"n_rows":50,"n_cols":10,"rows_kept":50,"cut":false,"hidden":false,"merged":[[49,3,49,9],[36,3,36,9],[37,3,37,9],[38,3,38,9],[39,3,39,9],[42,3,42,9],[43,3,43,9],[44,3,44,9],[45,3,45,9],[46,3,46,9],[47,3,47,9],[48,3,48,9],[35,3,35,9],[21,3,21,9],[22,3,22,9],[25,3,25,9],[26,4,26,8],[27,4,27,8],[28,4,28,8],[29,4,29,8],[32,3,32,9],[33,3,33,9],[34,3,34,9],[20,3,20,9],[5,4,5,8],[6,5,6,8],[7,5,7,8],[8,5,8,8],[9,5,9,8],[12,3,12,9],[13,3,13,9],[14,3,14,9],[17,3,17,9],[18,3,18,9],[19,3,19,9]]}
[]
[]
[]
[]
[]
[null,null,null,null,"                                      XBRL Excel Utility"]
[null,null,null,null,"1.","Overview"]
[null,null,null,null,"2.","Before you begin"]
[null,null,null,null,"3.","Index"]
[null,null,null,null,"4.","Steps for filing - Financial Results - Non Banking Format"]
[]
[]
[null,null,null,"1. Overview"]
[null,null,null,"The excel utility can be used for creating the XBRL/XML file for efiling of Financial Results"]
[null,null,null,"XBRL filling consists of two processes. Firstly generation of XBRL/XML file and upload of generated XBRL/XML file to BSE Listing Center Website (www.listing.bseindia.com) ."]
[]
[]
[null,null,null," 2.  Before you begin"]
[null,null,null,"1. The version of Microsoft Excel in your system should be Microsoft Office Excel 2007 and above."]
[null,null,null,"2. The system should have a file compression software to unzip excel utility file."]
[null,null,null,"3. Make sure that you have downloaded the latest Excel Utility from BSE Website to your local system."]
[null,null,null,"4. Make sure that you have downloaded the Chrome Browser to view report generated from Excel utility"]
[null,null,null,"5. Please enable the Macros (if disabled) as per instructions given in manual, so that all the functionalities of  Excel Utility works fine. Please first go through Enable Macro - Manual attached with zip file."]
[]
[]
[null,null,null,"3. Index "]
[null,null,null,1,"Details of general information about company",null,null,null,null,"General Info"]
[null,null,null,2,"Financial Result By Companies Other than Banks",null,null,null,null,"Quarterly"]
[null,null,null,3,"Statement of Asset and Liabilities",null,null,null,null,"Asset Liabilities"]
[null,null,null,4,"Format of Reporting of Segment wise Revenue, Result and Capital Employed along with the quarterly results",null,null,null,null,"Segment"]
[]
[]
[null,null,null,"4. Steps for Filing Of  Financial Results"]
[null,null,null,"I.  Fill up the data: Navigate to each field of every section in the sheet to provide applicable data in correct format.  (Formats will get reflected while filling data.)  \n   - Use paste special command to paste data from other sheet."]
[null,null,null,"II. Validating Sheets:  Click on the ''Validate \"  button to ensure that the sheet has been properly filled and also data has been furnished in proper format. If there are some errors on the sheet, excel utility will prompt you about the same."]
[null,null,null,"III. Validate All Sheets:  Click on the ''Home\"  button. And then click on \"Validate All Sheet\" button to ensure that all sheets has been properly filled and validated successfully. If there are some errors on the sheet, excel utility will prompt you about the same and stop validation at the same time. After correction, once again follow the same procedure to validate all sheets."]
[null,null,null,"Excel Utility will not allow you to generate XBRL/XML until you rectify all errors. "]
[null,null,null,"IV. Generate XML :   Excel Utility will not allow you to generate XBRL/XML unless successful validation of all sheet is completed. Now click on 'Generate XML'' to generate XBRL/XML file. \n    - Save the XBRL/XML file in your desired folder in local system. "]
[null,null,null,"V. Generate Report :   Excel Utility will allow you to generate Report. Now click on 'Generate Report'' to generate html report.   \n     - Save the HTML Report file in your desired folder in local system.     \n     - To view HTML Report open \"Chrome Web Browser\" . \n     - To print report in PDF Format, Click on print button and save as PDF. "]
[null,null,null,"VI. Upload XML file to BSE Listing Center: For uploading the XBRL/XML file generated through  Utility, login to BSE Listing Center and upload generated xml file. On Upload screen provide the required information and browse to select XML file and submit the XML.\n"]
[]
[]
[null,null,null,"5. Fill up the data in excel utility"]
[null,null,null,"1. Cells with red fonts indicate mandatory fields. "]
[null,null,null,"2. If mandatory field is left empty, then Utility will not allow you to proceed further for generating XML."]
[null,null,null,"3. You are not allowed to enter data in the Grey Cells."]
[null,null,null,"4. If fields are not applicable to your company then leave it blank. Do not insert Zero unless it is a mandatory field."]
[null,null,null,"5. Data provided must be in correct format, otherwise Utility will not allow you to proceed further for generating XML."]
[null,null,null,"6. Select data from \"Dropdown list\" wherever applicable. "]
[null,null,null,"7. Adding Notes:  Click on \"Add Notes\" button to add notes "]

{"sheet":"General Info","index":1,"n_rows":71,"n_cols":21,"rows_kept":71,"cut":false,"hidden":false,"merged":[[8,3,8,6],[9,5,12,6],[21,5,21,6],[17,5,20,6]]}
[]
[null,null,null,null,null,null,null,null,null,null,null,null,null,null,null,null,null,"Actual",null,"Audited"]
[null,null,null,null,null,null,null,null,null,null,null,null,null,null,null,null,"Consolidated","Thousands",null,"Unaudited"]
[null,null,null,null,null,null,null,null,null,null,null,null,null,null,null,null,"Standalone","Lakhs","Single segment"]
[null,null,null,null,null,null,null,null,null,null,null,null,null,null,null,null,null,"Millions","Multi segment","First quarter","Half yearly"]
[null,null,null,null,null,null,null,null,null,null,null,null,null,null,null,null,null,"Billions","Geographical","Half yearly","Yearly"]
[null,null,null,null,null,null,null,null,null,null,null,null,null,null,null,null,null,"Crores",null,"Third quarter"]
[null,null,null,null,null,null,null,null,null,null,null,null,null,null,null,null,null,null,null,"Yearly"]
[null,null,null,"General information about company"]
[null,null,null,"Scrip code",532124,null,null,null,null,null,null,null,null,null,"Equity"]
[null,null,null,"Name of company","RELIABLE VENTURES INDIA LTD",null,null,null,null,null,null,null,null,null,"Debt securities and/or non-cumulative redeemable preference shares",null,"00"]
[null,null,null,"Result Type","Main Format",null,null,null,null,null,null,null,null,null,"Equity and Debt",null,"01","01","2014"]
[null,null,null,"Class of security","Equity",null,null,null,null,null,null,null,null,null,null,null,"02","02","2015"]
[null,null,null,"Date of start of financial year","01","04","2017",null,null,null,null,null,null,null,null,null,"03","03","2016"]
[null,null,null,"Date of end of financial year","31","03",2018,null,null,null,null,null,null,null,null,null,"04","04","2017"]
[null,null,null,"Date of board meeting when results were approved","14","09","2017",null,null,null,null,null,null,null,null,null,"05","05",2018]
[null,null,null,"Date on which prior intimation of the meeting for considering financial results was informed to the exchange","07","09","2017",null,null,null,null,null,null,null,null,null,"06","06",2018]
[null,null,null,"Description of presentation currency","INR",null,null,null,null,null,null,null,null,null,null,null,"07","07",2018]
[null,null,null,"Level of rounding used in financial results","Lakhs",null,null,null,null,null,null,null,null,null,null,null,"08","08",2018]
[null,null,null,"Reporting Quarter","First quarter",null,null,null,null,null,null,null,null,null,null,null,"09","09",2018]
[null,null,null,"Nature of report standalone or consolidated","Standalone",null,null,null,null,null,null,null,null,null,null,null,"10","10",2018]
[null,null,null,"Whether results are audited or unaudited","Unaudited","For Current Quarter Only",null,null,null,null,null,null,null,null,null,null,"11","11",2018]
[null,null,null,"Segment Reporting","Single segment",null,null,null,null,null,null,null,null,null,null,null,"12","12",2018]
[null,null,null,"Description of single segment","Hotel/Hospitality",null,null,null,null,null,null,null,null,null,null,null,"13",null,2018]
[null,null,null,"Start time of board meeting","14","30","HH:MM",null,null,null,null,null,null,null,null,null,"14",null,2018]
[null,null,null,"End time of board meeting","16","30","HH:MM",null,null,null,null,null,null,null,null,null,"15",null,2018]
[null,null,null,null,null,null,null,null,null,null,null,null,null,null,null,null,"16",null,2018]
[null,null,null,null,null,null,null,null,null,null,null,null,null,null,null,null,"17"]
[null,null,null,null,null,null,null,null,null,null,null,null,null,null,null,null,"18"]
[null,null,null,null,null,null,null,null,null,null,null,null,null,null,null,null,"19"]
[null,null,null,null,null,null,null,null,null,null,null,null,null,null,null,null,"20"]
[null,null,null,null,null,null,null,null,null,null,null,null,null,null,null,null,"21"]
[null,null,null,null,null,null,null,null,null,null,null,null,null,null,null,null,"22"]
[null,null,null,null,null,null,null,null,null,null,null,null,null,null,null,null,"23"]
[null,null,null,null,null,null,null,null,null,null,null,null,null,null,null,null,"24"]
[null,null,null,null,null,null,null,null,null,null,null,null,null,null,null,null,"25"]
[null,null,null,null,null,null,null,null,null,null,null,null,null,null,null,null,"26"]
[null,null,null,null,null,null,null,null,null,null,null,null,null,null,null,null,"27"]
[null,null,null,null,null,null,null,null,null,null,null,null,null,null,null,null,"28"]
[null,null,null,null,null,null,null,null,null,null,null,null,null,null,null,null,"29"]
[null,null,null,null,null,null,null,null,null,null,null,null,null,null,null,null,"30"]
[null,null,null,null,null,null,null,null,null,null,null,null,null,null,null,null,"31"]
[null,null,null,null,null,null,null,null,null,null,null,null,null,null,null,null,{"$f":"+Q42+1","v":32}]
[null,null,null,null,null,null,null,null,null,null,null,null,null,null,null,null,{"$f":"+Q43+1","v":33}]
[null,null,null,null,null,null,null,null,null,null,null,null,null,null,null,null,34]
[null,null,null,null,null,null,null,null,null,null,null,null,null,null,null,null,35]
[null,null,null,null,null,null,null,null,null,null,null,null,null,null,null,null,36]
[null,null,null,null,null,null,null,null,null,null,null,null,null,null,null,null,37]
[null,null,null,null,null,null,null,null,null,null,null,null,null,null,null,null,38]
[null,null,null,null,null,null,null,null,null,null,null,null,null,null,null,null,39]
[null,null,null,null,null,null,null,null,null,null,null,null,null,null,null,null,40]
[null,null,null,null,null,null,null,null,null,null,null,null,null,null,null,null,41]
[null,null,null,null,null,null,null,null,null,null,null,null,null,null,null,null,42]
[null,null,null,null,null,null,null,null,null,null,null,null,null,null,null,null,43]
[null,null,null,null,null,null,null,null,null,null,null,null,null,null,null,null,44]
[null,null,null,null,null,null,null,null,null,null,null,null,null,null,null,null,45]
[null,null,null,null,null,null,null,null,null,null,null,null,null,null,null,null,46]
[null,null,null,null,null,null,null,null,null,null,null,null,null,null,null,null,47]
[null,null,null,null,null,null,null,null,null,null,null,null,null,null,null,null,48]
[null,null,null,null,null,null,null,null,null,null,null,null,null,null,null,null,49]
[null,null,null,null,null,null,null,null,null,null,null,null,null,null,null,null,50]
[null,null,null,null,null,null,null,null,null,null,null,null,null,null,null,null,51]
[null,null,null,null,null,null,null,null,null,null,null,null,null,null,null,null,52]
[null,null,null,null,null,null,null,null,null,null,null,null,null,null,null,null,53]
[null,null,null,null,null,null,null,null,null,null,null,null,null,null,null,null,54]
[null,null,null,null,null,null,null,null,null,null,null,null,null,null,null,null,55]
[null,null,null,null,null,null,null,null,null,null,null,null,null,null,null,null,56]
[null,null,null,null,null,null,null,null,null,null,null,null,null,null,null,null,57]
[null,null,null,null,null,null,null,null,null,null,null,null,null,null,null,null,58]
[null,null,null,null,null,null,null,null,null,null,null,null,null,null,null,null,59]
[null,null,null,null,null,null,null,null,null,null,null,null,null,null,null,null,60]

{"sheet":"Financial Results","index":2,"n_rows":70,"n_cols":19,"rows_kept":70,"cut":false,"hidden":false,"merged":[[7,3,7,6],[14,5,14,6],[18,5,18,6],[25,5,25,6],[13,4,13,6],[58,5,58,6],[63,5,63,6],[8,3,8,4],[55,5,55,6],[43,5,43,6]]}
[]
[]
[]
[]
[]
[]
[]
[null,null,null,"Financial Results – Other than Bank"]
[null,null,null,"Particulars",null,"3 months/ 6 months ended         (dd-mm-yyyy)","Year to date figures for current period ended                              (dd-mm-yyyy)"]
[null,null,null,"A","Date of start of reporting period","01-04-2017","01-04-2017"]
[null,null,null,"B","Date of end of reporting period","30-06-2017","30-06-2017"]
[null,null,null,"C","Whether results are audited or unaudited",{"$f":"+IF(COUNTA('General Info'!E22),'General Info'!E22,\"\")","v":"Unaudited"},"Unaudited",null,null,null,null,null,null,null,null,null,null,null,"Audited"]
[null,null,null,"D","Nature of report standalone or consolidated",{"$f":"+IF(COUNTA('General Info'!E21),'General Info'!E21,\"\")","v":"Standalone"},{"$f":"+IF(COUNTA('General Info'!E21),'General Info'!E21,\"\")","v":"Standalone"},null,null,null,null,null,null,null,null,null,null,null,"Unaudited"]
[null,null,null,"Part I","Blue color marked fields are non-mandatory.                                                                                                                                                                                     For Consolidated Results, if the company has no figures for 3 months / 6 months ended, in such case zero shall be inserted in the said column."]
[null,null,null,1,"Revenue From Operations"]
[null,null,null,null,"Revenue from operations",333.41,{"$f":"+IF(COUNTA('Financial Results'!F16),+'Financial Results'!F16,\"\")","v":333.41},null,null,null,null,null,null,null,null,null,null,null,{"$f":"+IF(COUNTA('Financial Results'!F16),+'Financial Results'!F16,\"\")","v":333.41}]
[null,null,null,null,"Other income",8.6,{"$f":"+IF(COUNTA('Financial Results'!F17),+'Financial Results'!F17,\"\")","v":8.6},null,null,null,null,null,null,null,null,null,null,null,{"$f":"+IF(COUNTA('Financial Results'!F17),+'Financial Results'!F17,\"\")","v":8.6}]
[null,null,null,null,"Total Revenue",{"$f":"+IF(COUNT(F16:F17),ROUND(SUM(F16:F17),3),\"\")","v":342.01},{"$f":"+IF(COUNT(G16:G17),ROUND(SUM(G16:G17),3),\"\")","v":342.01},null,null,null,null,null,null,null,null,null,null,null,{"$f":"+IF(COUNTA('Financial Results'!F18),+'Financial Results'!F18,\"\")","v":342.01}]
[null,null,null,2,"Expenses",null,null,null,null,null,null,null,null,null,null,null,null,null,{"$f":"+IF(COUNTA('Financial Results'!F19),+'Financial Results'!F19,\"\")","v":""}]
[null,null,null,"(a)","Cost of materials consumed",52.93,{"$f":"+IF(COUNTA('Financial Results'!F20),+'Financial Results'!F20,\"\")","v":52.93},null,null,null,null,null,null,null,null,null,null,null,{"$f":"+IF(COUNTA('Financial Results'!F20),+'Financial Results'!F20,\"\")","v":52.93}]
[null,null,null,"(b)","Purchases of stock-in-trade",0,{"$f":"+IF(COUNTA('Financial Results'!F21),+'Financial Results'!F21,\"\")","v":0},null,null,null,null,null,null,null,null,null,null,null,{"$f":"+IF(COUNTA('Financial Results'!F21),+'Financial Results'!F21,\"\")","v":0}]
[null,null,null,"(c)","Changes in inventories of finished goods, work-in-progress and stock-in-trade",0,{"$f":"+IF(COUNTA('Financial Results'!F22),+'Financial Results'!F22,\"\")","v":0},null,null,null,null,null,null,null,null,null,null,null,{"$f":"+IF(COUNTA('Financial Results'!F22),+'Financial Results'!F22,\"\")","v":0}]
[null,null,null,"(d)","Employee benefit expense  ",114.84,{"$f":"+IF(COUNTA('Financial Results'!F23),+'Financial Results'!F23,\"\")","v":114.84},null,null,null,null,null,null,null,null,null,null,null,{"$f":"+IF(COUNTA('Financial Results'!F23),+'Financial Results'!F23,\"\")","v":114.84}]
[null,null,null,"(e)","Finance costs",0.38,{"$f":"+IF(COUNTA('Financial Results'!F24),+'Financial Results'!F24,\"\")","v":0.38},null,null,null,null,null,null,null,null,null,null,null,{"$f":"+IF(COUNTA('Financial Results'!F24),+'Financial Results'!F24,\"\")","v":0.38}]
[null,null,null,"(f)","Depreciation and amortisation expense",34.840000000000003,{"$f":"+IF(COUNTA('Financial Results'!F25),+'Financial Results'!F25,\"\")","v":34.840000000000003},null,null,null,null,null,null,null,null,null,null,null,{"$f":"+IF(COUNTA('Financial Results'!F25),+'Financial Results'!F25,\"\")","v":34.840000000000003}]
[null,null,null,"(g)","Other Expenses",null,null,null,null,null,null,null,null,null,null,null,null,null,{"$f":"+IF(COUNTA('Financial Results'!F26),+'Financial Results'!F26,\"\")","v":""}]
[null,null,null,1,"Other Expenses",137.12,{"$f":"+IF(COUNTA('Financial Results'!F27),+'Financial Results'!F27,\"\")","v":137.12},null,null,null,null,null,null,null,null,null,null,null,{"$f":"+IF(COUNTA('Financial Results'!F27),+'Financial Results'!F27,\"\")","v":137.12}]
[null,null,null,2,null,null,{"$f":"+IF(COUNTA('Financial Results'!F28),+'Financial Results'!F28,\"\")","v":""},null,null,null,null,null,null,null,null,null,null,null,{"$f":"+IF(COUNTA('Financial Results'!F28),+'Financial Results'!F28,\"\")","v":""}]
[null,null,null,3,null,null,{"$f":"+IF(COUNTA('Financial Results'!F29),+'Financial Results'!F29,\"\")","v":""},null,null,null,null,null,null,null,null,null,null,null,{"$f":"+IF(COUNTA('Financial Results'!F29),+'Financial Results'!F29,\"\")","v":""}]
[null,null,null,4,null,null,{"$f":"+IF(COUNTA('Financial Results'!F30),+'Financial Results'!F30,\"\")","v":""},null,null,null,null,null,null,null,null,null,null,null,{"$f":"+IF(COUNTA('Financial Results'!F30),+'Financial Results'!F30,\"\")","v":""}]
[null,null,null,5,null,null,{"$f":"+IF(COUNTA('Financial Results'!F31),+'Financial Results'!F31,\"\")","v":""},null,null,null,null,null,null,null,null,null,null,null,{"$f":"+IF(COUNTA('Financial Results'!F31),+'Financial Results'!F31,\"\")","v":""}]
[null,null,null,6,null,null,{"$f":"+IF(COUNTA('Financial Results'!F32),+'Financial Results'!F32,\"\")","v":""},null,null,null,null,null,null,null,null,null,null,null,{"$f":"+IF(COUNTA('Financial Results'!F32),+'Financial Results'!F32,\"\")","v":""}]
[null,null,null,7,null,null,{"$f":"+IF(COUNTA('Financial Results'!F33),+'Financial Results'!F33,\"\")","v":""},null,null,null,null,null,null,null,null,null,null,null,{"$f":"+IF(COUNTA('Financial Results'!F33),+'Financial Results'!F33,\"\")","v":""}]
[null,null,null,8,null,null,{"$f":"+IF(COUNTA('Financial Results'!F34),+'Financial Results'!F34,\"\")","v":""},null,null,null,null,null,null,null,null,null,null,null,{"$f":"+IF(COUNTA('Financial Results'!F34),+'Financial Results'!F34,\"\")","v":""}]
[null,null,null,9,null,null,{"$f":"+IF(COUNTA('Financial Results'!F35),+'Financial Results'!F35,\"\")","v":""},null,null,null,null,null,null,null,null,null,null,null,{"$f":"+IF(COUNTA('Financial Results'!F35),+'Financial Results'!F35,\"\")","v":""}]
[null,null,null,10,null,null,{"$f":"+IF(COUNTA('Financial Results'!F36),+'Financial Results'!F36,\"\")","v":""},null,null,null,null,null,null,null,null,null,null,null,{"$f":"+IF(COUNTA('Financial Results'!F36),+'Financial Results'!F36,\"\")","v":""}]
[null,null,null,null,"Total other expenses",{"$f":"+IF(COUNT(F27:F36),ROUND(SUM(F27:F36),3),\"\")","v":137.12},{"$f":"+IF(COUNT(G27:G36),ROUND(SUM(G27:G36),3),\"\")","v":137.12},null,null,null,null,null,null,null,null,null,null,null,{"$f":"+IF(COUNTA('Financial Results'!F37),+'Financial Results'!F37,\"\")","v":137.12}]
[null,null,null,null,"Total  expenses",{"$f":"+IF(COUNT(F37,F20:F25),SUM(F37,F20:F25),\"\")","v":340.11},{"$f":"+IF(COUNT(G37,G20:G25),SUM(G37,G20:G25),\"\")","v":340.11},null,null,null,null,null,null,null,null,null,null,null,{"$f":"+IF(COUNTA('Financial Results'!F38),+'Financial Results'!F38,\"\")","v":340.11}]
[null,null,null,3,"Profit before exceptional and extraordinary items and tax ",{"$f":"+IF(COUNT(F38,F18),+ROUND(SUM(F18)-SUM(F38),3),\"\")","v":1.9},{"$f":"+IF(COUNT(G38,G18),+ROUND(SUM(G18)-SUM(G38),3),\"\")","v":1.9},null,null,null,null,null,null,null,null,null,null,null,{"$f":"+IF(COUNTA('Financial Results'!F39),+'Financial Results'!F39,\"\")","v":1.9}]
[null,null,null,4,"Exceptional items ",0,{"$f":"+IF(COUNTA('Financial Results'!F40),+'Financial Results'!F40,\"\")","v":0},null,null,null,null,null,null,null,null,null,null,null,{"$f":"+IF(COUNTA('Financial Results'!F40),+'Financial Results'!F40,\"\")","v":0}]
[null,null,null,5,"Profit before extraordinary items and tax",{"$f":"+IF(COUNT(F39:F40),+ROUND(SUM(F39)+SUM(F40),3),\"\")","v":1.9},{"$f":"+IF(COUNT(G39:G40),+ROUND(SUM(G39)+SUM(G40),3),\"\")","v":1.9},null,null,null,null,null,null,null,null,null,null,null,{"$f":"+IF(COUNTA('Financial Results'!F41),+'Financial Results'!F41,\"\")","v":1.9}]
[null,null,null,6,"Extraordinary items",0,{"$f":"+IF(COUNTA('Financial Results'!F42),+'Financial Results'!F42,\"\")","v":0},null,null,null,null,null,null,null,null,null,null,null,{"$f":"+IF(COUNTA('Financial Results'!F42),+'Financial Results'!F42,\"\")","v":0}]
[null,null,null,7,"Profit before tax",{"$f":"+IF(COUNT(F41:F42),+ROUND(SUM(F41)+SUM(F42),3),\"\")","v":1.9},{"$f":"+IF(COUNT(G41:G42),+ROUND(SUM(G41)+SUM(G42),3),\"\")","v":1.9},null,null,null,null,null,null,null,null,null,null,null,{"$f":"+IF(COUNTA('Financial Results'!F43),+'Financial Results'!F43,\"\")","v":1.9}]
[null,null,null,8,"Tax Expense",null,null,null,null,null,null,null,null,null,null,null,null,null,{"$f":"+IF(COUNTA('Financial Results'!F44),+'Financial Results'!F44,\"\")","v":""}]
[null,null,null,null,"Current tax",1.6,{"$f":"+IF(COUNTA('Financial Results'!F45),+'Financial Results'!F45,\"\")","v":1.6},null,null,null,null,null,null,null,null,null,null,null,{"$f":"+IF(COUNTA('Financial Results'!F45),+'Financial Results'!F45,\"\")","v":1.6}]
[null,null,null,null,"Deferred tax",-0.97,{"$f":"+IF(COUNTA('Financial Results'!F46),+'Financial Results'!F46,\"\")","v":-0.97},null,null,null,null,null,null,null,null,null,null,null,{"$f":"+IF(COUNTA('Financial Results'!F46),+'Financial Results'!F46,\"\")","v":-0.97}]
[null,null,null,null,"Total tax expenses",{"$f":"+IF(COUNT(F45:F46),ROUND(SUM(F45:F46),3),\"\")","v":0.63},{"$f":"+IF(COUNT(G45:G46),ROUND(SUM(G45:G46),3),\"\")","v":0.63},null,null,null,null,null,null,null,null,null,null,null,{"$f":"+IF(COUNTA('Financial Results'!F47),+'Financial Results'!F47,\"\")","v":0.63}]
[null,null,null,9,"Net Profit Loss for the period from continuing operations",{"$f":"+IF(COUNT(F43,F47),ROUND(SUM(F43)-SUM(F47),3),\"\")","v":1.27},{"$f":"+IF(COUNT(G43,G47),ROUND(SUM(G43)-SUM(G47),3),\"\")","v":1.27},null,null,null,null,null,null,null,null,null,null,null,{"$f":"+IF(COUNTA('Financial Results'!F48),+'Financial Results'!F48,\"\")","v":1.27}]
[null,null,null,10,"Profit (loss) from discontinuing operations before tax",0,{"$f":"+IF(COUNTA('Financial Results'!F49),+'Financial Results'!F49,\"\")","v":0},null,null,null,null,null,null,null,null,null,null,null,{"$f":"+IF(COUNTA('Financial Results'!F49),+'Financial Results'!F49,\"\")","v":0}]
[null,null,null,11,"Tax expense of discontinuing operations",0,{"$f":"+IF(COUNTA('Financial Results'!F50),+'Financial Results'!F50,\"\")","v":0},null,null,null,null,null,null,null,null,null,null,null,{"$f":"+IF(COUNTA('Financial Results'!F50),+'Financial Results'!F50,\"\")","v":0}]
[null,null,null,12,"Net profit (loss) from discontinuing operation after tax",{"$f":"+IF(COUNT(F49:F50),+ROUND(SUM(F49)-SUM(F50),3),\"\")","v":0},{"$f":"+IF(COUNT(G49:G50),+ROUND(SUM(G49)-SUM(G50),3),\"\")","v":0},null,null,null,null,null,null,null,null,null,null,null,{"$f":"+IF(COUNTA('Financial Results'!F51),+'Financial Results'!F51,\"\")","v":0}]
[null,null,null,13,"Profit (loss) for period before minority interest",{"$f":"+IF(COUNT(F48:F51),+ROUND(SUM(F48)+SUM(F51),3),\"\")","v":1.27},{"$f":"+IF(COUNT(G48:G51),+ROUND(SUM(G48)+SUM(G51),3),\"\")","v":1.27},null,null,null,null,null,null,null,null,null,null,null,{"$f":"+IF(COUNTA('Financial Results'!F52),+'Financial Results'!F52,\"\")","v":1.27}]
[null,null,null,14,"Share of profit (loss) of associates",null,null,null,null,null,null,null,null,null,null,null,null,null,{"$f":"+IF(COUNTA('Financial Results'!F53),+'Financial Results'!F53,\"\")","v":""}]
[null,null,null,15,"Profit (loss) of minority interest",null,null,null,null,null,null,null,null,null,null,null,null,null,{"$f":"+IF(COUNTA('Financial Results'!F54),+'Financial Results'!F54,\"\")","v":""}]
[null,null,null,16,"Net profit (Loss) for the period",{"$f":"+IF(COUNT(F52:F54),ROUND(SUM(F52)+SUM(F53:F54),3),\"\")","v":1.27},{"$f":"+IF(COUNT(G52:G54),ROUND(SUM(G52)+SUM(G53:G54),3),\"\")","v":1.27},null,null,null,null,null,null,null,null,null,null,null,{"$f":"+IF(COUNTA('Financial Results'!F55),+'Financial Results'!F55,\"\")","v":1.27}]
[null,null,null,17,"Details of equity share capital",null,null,null,null,null,null,null,null,null,null,null,null,null,{"$f":"+IF(COUNTA('Financial Results'!F56),+'Financial Results'!F56,\"\")","v":""}]
[null,null,null,null,"Paid-up equity share capital",1101.29,{"$f":"+IF(COUNTA('Financial Results'!F57),+'Financial Results'!F57,\"\")","v":1101.29},null,null,null,null,null,null,null,null,null,null,null,{"$f":"+IF(COUNTA('Financial Results'!F57),+'Financial Results'!F57,\"\")","v":1101.29}]
[null,null,null,null,"Face value of equity share capital",10,{"$f":"+IF(COUNTA('Financial Results'!F58),+'Financial Results'!F58,\"\")","v":10},null,null,null,null,null,null,null,null,null,null,null,{"$f":"+IF(COUNTA('Financial Results'!F58),+'Financial Results'!F58,\"\")","v":10}]
[null,null,null,17,"Details of debt securities",null,null,null,null,null,null,null,null,null,null,null,null,null,{"$f":"+IF(COUNTA('Financial Results'!F59),+'Financial Results'!F59,\"\")","v":""}]
[null,null,null,null,"Paid-up debt capital",null,null,null,null,null,null,null,null,null,null,null,null,null,{"$f":"+IF(COUNTA('Financial Results'!F60),+'Financial Results'!F60,\"\")","v":""}]
[null,null,null,null,"Face value of debt securities",null,null,null,null,null,null,null,null,null,null,null,null,null,{"$f":"+IF(COUNTA('Financial Results'!F61),+'Financial Results'!F61,\"\")","v":""}]
[null,null,null,18,"Reserves excluding revaluation reserve",null,null,null,null,null,null,null,null,null,null,null,null,null,{"$f":"+IF(COUNTA('Financial Results'!F62),+'Financial Results'!F62,\"\")","v":""}]
[null,null,null,19,"Debenture redemption reserve",null,null,null,null,null,null,null,null,null,null,null,null,null,{"$f":"+IF(COUNTA('Financial Results'!F63),+'Financial Results'!F63,\"\")","v":""}]
[null,null,null,20,"Earnings per equity share",null,null,null,null,null,null,null,null,null,null,null,null,null,{"$f":"+IF(COUNTA('Financial Results'!F64),+'Financial Results'!F64,\"\")","v":""}]
[null,null,null,null,"Basic earnings (loss) per share from continuing and discontinued operations",0.01,{"$f":"+IF(COUNTA('Financial Results'!F65),+'Financial Results'!F65,\"\")","v":0.01},null,null,null,null,null,null,null,null,null,null,null,{"$f":"+IF(COUNTA('Financial Results'!F65),+'Financial Results'!F65,\"\")","v":0.01}]
[null,null,null,null,"Diluted earnings (loss) per share from continuing and discontinued operations",0.01,{"$f":"+IF(COUNTA('Financial Results'!F66),+'Financial Results'!F66,\"\")","v":0.01},null,null,null,null,null,null,null,null,null,null,null,{"$f":"+IF(COUNTA('Financial Results'!F66),+'Financial Results'!F66,\"\")","v":0.01}]
[null,null,null,21,"Debt equity ratio",null,null,null,null,null,null,null,null,null,null,null,null,null,{"$f":"+IF(COUNTA('Financial Results'!F67),+'Financial Results'!F67,\"\")","v":""}]
[null,null,null,22,"Debt service coverage ratio",null,null,null,null,null,null,null,null,null,null,null,null,null,{"$f":"+IF(COUNTA('Financial Results'!F68),+'Financial Results'!F68,\"\")","v":""}]
[null,null,null,23,"Interest service coverage ratio",null,null,null,null,null,null,null,null,null,null,null,null,null,{"$f":"+IF(COUNTA('Financial Results'!F69),+'Financial Results'!F69,\"\")","v":""}]
[null,null,null,24,"Disclosure of notes on financial results"]

{"sheet":"Taxonomy","index":3,"n_rows":532,"n_cols":46,"rows_kept":532,"cut":false,"hidden":true,"merged":[]}
["Prefix","label","name","Label",null,"order","ID","label1","label2","ScheduleName","type","enumerations","substitutionGroup","balance","periodType"]
["in-bse-fin","GeneralInformationAbstract","General information [Abstract]",null,null,null,null,null,null,null,"xbrli:stringItemType",null,null,null,"duration"]
["in-bse-fin","ScripCode","Scrip code","Scrip code",null,null,null,null,null,null,"in-bse-fin-types:ScripCode",null,null,null,"duration",null,null,null,"This is a mandatory field. Should be valid SCRIP CODE  as per BSE Scrip Code Format. "]
["in-bse-fin","NameOfTheCompany","Name of the company","Name of company",null,null,null,null,null,null,"xbrli:stringItemType",null,null,null,"duration"]
["in-bse-fin","ResultType","Result Type","Result Type",null,null,null,null,null,null,"xbrli:stringItemType",null,null,null,"duration"]
["in-bse-fin","ClassOfSecurity","Class of security","Class of security",null,null,null,null,null,null,"in-bse-fin-types:ClassOfSecurity",null,null,null,"duration"]
["in-bse-fin","DateOfBoardMeetingWhenFinancialResultsWereApproved","Date of board meeting when results were approved","Date of board meeting when results were approved",null,null,null,null,null,null,"xbrli:dateItemType",null,null,null,"duration"]
["in-bse-fin","DateOnWhichPriorIntimationOfTheMeetingForConsideringFinancialResultsWasInformedToTheExchange","Date on which prior intimation of the meeting for considering financial results was informed to the exchange","Date on which prior intimation of the meeting for considering financial results was informed to the exchange",null,null,null,null,null,null,"xbrli:dateItemType",null,null,null,"duration"]
["in-bse-fin","DateOfStartOfReportingPeriod","Date of start of reporting period","Date of start of reporting period",null,null,null,null,null,null,"xbrli:dateItemType",null,null,null,"duration"]
["in-bse-fin","DateOfEndOfReportingPeriod","Date of end of reporting period","Date of end of reporting period",null,null,null,null,null,null,"xbrli:dateItemType",null,null,null,"duration"]
["in-bse-fin","DateOfStartOfFinancialYear","Date of start of Quarter","Date of start of financial year",null,null,null,null,null,null,"xbrli:dateItemType",null,null,null,"duration"]
["in-bse-fin","DateOfEndOfFinancialYear","Date of end of Quarter","Date of end of financial year",null,null,null,null,null,null,"xbrli:dateItemType",null,null,null,"duration"]
["in-bse-fin","NatureOfReportStandaloneConsolidated","Nature of report standalone or consolidated","Nature of report standalone or consolidated",null,null,null,null,null,null,"xbrli:stringItemType",null,null,null,"duration"]
["in-bse-fin","ReportingQuarter","Reporting Quarter","Reporting Quarter",null,null,null,null,null,null,"xbrli:stringItemType",null,null,null,"duration"]
["in-bse-fin","DescriptionOfPresentationCurrency","Description of presentation currency","Description of presentation currency",null,null,null,null,null,null,"xbrli:stringItemType",null,null,null,"duration"]
["in-bse-fin","LevelOfRoundingUsedInFinancialStatements","Level of rounding used in financial statements","Level of rounding used in financial results",null,null,null,null,null,null,"in-ca-types:LevelOfRounding",null,null,null,"duration"]
["in-bse-fin","WhetherResultsAreAuditedOrUnaudited","Whether results are audited or unaudited","Whether results are audited or unaudited",null,null,null,null,null,null,"xbrli:stringItemType",null,null,null,"duration"]
["in-bse-fin","IsCompanyReportingMultisegmentOrSingleSegment","Is company reporting multisegment or single segment","Segment Reporting",null,null,null,null,null,null,"xbrli:stringItemType",null,null,null,"duration"]
["in-bse-fin","DescriptionOfSingleSegment","Description of single segment","Description of single segment",null,null,null,null,null,null,"xbrli:stringItemType",null,null,null,"duration",null,null,null,"This is a mandatory field as \"Single Segment\" selected in Segement Reporting field."]
[null,"StartTimeOfBoardMeeting",null,"Start time of board meeting",null,null,null,null,null,null,"xbrli:timeItemType",null,null,null,"duration"]
[null,"EndTimeOfBoardMeeting",null,"End time of board meeting",null,null,null,null,null,null,"xbrli:timeItemType",null,null,null,"duration"]
["in-bse-fin","DisclosuresRelatingToSegmentAbstract","Disclosures relating to segment [Abstract]",null,null,null,null,null,null,null,"xbrli:stringItemType",null,null,null,"duration"]
["in-bse-fin","DisclosuresRelatingToSegmentRevenueAbstract","Disclosures relating to segment revenue [Abstract]",null,null,null,null,null,null,null,"xbrli:stringItemType",null,null,null,"duration"]
["in-bse-fin","DisclosuresRelatingToSegmentRevenueTable","Disclosures relating to segment revenue [Table]",null,null,null,null,null,null,null,"xbrli:stringItemType",null,null,null,"duration"]
["in-bse-fin","ReportableSegmentsAxis","Reportable segments [Axis]",null,null,null,null,null,null,null,"xbrli:stringItemType",null,null,null,"duration"]
["in-bse-fin","ReportableSegmentsMember","Reportable segments [Member]",null,null,null,null,null,null,null,"xbrli:stringItemType",null,null,null,"duration"]
["in-bse-fin","ReportableSegments1Member","Reportable segments 1 [Member]",null,null,null,null,null,null,null,"xbrli:stringItemType",null,null,null,"duration"]
["in-bse-fin","ReportableSegments2Member","Reportable segments 2 [Member]",null,null,null,null,null,null,null,"xbrli:stringItemType",null,null,null,"duration"]
["in-bse-fin","ReportableSegments3Member","Reportable segments 3 [Member]",null,null,null,null,null,null,null,"xbrli:stringItemType",null,null,null,"duration"]
["in-bse-fin","ReportableSegments4Member","Reportable segments 4 [Member]",null,null,null,null,null,null,null,"xbrli:stringItemType",null,null,null,"duration"]
["in-bse-fin","ReportableSegments5Member","Reportable segments 5 [Member]",null,null,null,null,null,null,null,"xbrli:stringItemType",null,null,null,"duration"]
["in-bse-fin","ReportableSegments6Member","Reportable segments 6 [Member]",null,null,null,null,null,null,null,"xbrli:stringItemType",null,null,null,"duration"]
["in-bse-fin","ReportableSegments7Member","Reportable segments 7 [Member]",null,null,null,null,null,null,null,"xbrli:stringItemType",null,null,null,"duration"]
["in-bse-fin","ReportableSegments8Member","Reportable segments 8 [Member]",null,null,null,null,null,null,null,"xbrli:stringItemType",null,null,null,"duration"]
["in-bse-fin","ReportableSegments9Member","Reportable segments 9 [Member]",null,null,null,null,null,null,null,"xbrli:stringItemType",null,null,null,"duration"]
["in-bse-fin","ReportableSegments10Member","Reportable segments 10 [Member]",null,null,null,null,null,null,null,"xbrli:stringItemType",null,null,null,"duration"]
["in-bse-fin","ReportableSegments11Member","Reportable segments 11 [Member]",null,null,null,null,null,null,null,"xbrli:stringItemType",null,null,null,"duration"]
["in-bse-fin","ReportableSegments12Member","Reportable segments 12 [Member]",null,null,null,null,null,null,null,"xbrli:stringItemType",null,null,null,"duration"]
["in-bse-fin","ReportableSegments13Member","Reportable segments 13 [Member]",null,null,null,null,null,null,null,"xbrli:stringItemType",null,null,null,"duration"]
["in-bse-fin","ReportableSegments14Member","Reportable segments 14 [Member]",null,null,null,null,null,null,null,"xbrli:stringItemType",null,null,null,"duration"]
["in-bse-fin","ReportableSegments15Member","Reportable segments 15 [Member]",null,null,null,null,null,null,null,"xbrli:stringItemType",null,null,null,"duration"]
["in-bse-fin","DisclosuresRelatingToSegmentRevenueLineItems","Disclosures relating to segment revenue [LineItems]",null,null,null,null,null,null,null,"xbrli:stringItemType",null,null,null,"duration"]
["in-bse-fin","DescriptionOfReportableSegment","Description Of Reportable Segment",null,null,null,null,null,null,null,"xbrli:stringItemType",null,null,null,"duration"]
["in-bse-fin","SegmentRevenue","Segment revenue","Segment revenue",null,null,null,null,null,null,"xbrli:monetaryItemType",null,null,null,"duration"]
["in-bse-fin","SegmentRevenue","Total segment revenue","Total Segment Revenue",null,null,null,null,null,null,"xbrli:monetaryItemType",null,null,null,"duration"]
["in-bse-fin","InterSegmentRevenue","Inter segment revenue","Less: Inter segment revenue",null,null,null,null,null,null,"xbrli:monetaryItemType",null,null,null,"duration"]
["in-bse-fin","SegmentRevenueFromOperations","Revenue from Operations","Revenue  from  Operations ",null,null,null,null,null,null,"xbrli:monetaryItemType",null,null,null,"duration"]
["in-bse-fin","DisclosuresRelatingToSegmentResultAbstract","Disclosures relating to segment result [Abstract]",null,null,null,null,null,null,null,"xbrli:stringItemType",null,null,null,"duration"]
["in-bse-fin","DisclosuresRelatingToSegmentResultTable","Disclosures relating to segment result [Table]",null,null,null,null,null,null,null,"xbrli:stringItemType",null,null,null,"duration"]
["in-bse-fin","ReportableSegmentsAxis_1","Reportable segments [Axis]"]
["in-bse-fin","ReportableSegmentsMember_1","Reportable segments [Member]"]
["in-bse-fin","ReportableSegments1Member_1","Reportable segments 1 [Member]"]
["in-bse-fin","ReportableSegments2Member_1","Reportable segments 2 [Member]"]
["in-bse-fin","ReportableSegments3Member_1","Reportable segments 3 [Member]"]
["in-bse-fin","ReportableSegments4Member_1","Reportable segments 4 [Member]"]
["in-bse-fin","ReportableSegments5Member_1","Reportable segments 5 [Member]"]
["in-bse-fin","ReportableSegments6Member_1","Reportable segments 6 [Member]"]
["in-bse-fin","ReportableSegments7Member_1","Reportable segments 7 [Member]"]
["in-bse-fin","ReportableSegments8Member_1","Reportable segments 8 [Member]"]
["in-bse-fin","ReportableSegments9Member_1","Reportable segments 9 [Member]"]
["in-bse-fin","ReportableSegments10Member_1","Reportable segments 10 [Member]"]
["in-bse-fin","ReportableSegments11Member_1","Reportable segments 11 [Member]"]
["in-bse-fin","ReportableSegments12Member_1","Reportable segments 12 [Member]"]
["in-bse-fin","ReportableSegments13Member_1","Reportable segments 13 [Member]"]
["in-bse-fin","ReportableSegments14Member_1","Reportable segments 14 [Member]"]
["in-bse-fin","ReportableSegments15Member_1","Reportable segments 15 [Member]"]
["in-bse-fin","DisclosuresRelatingToSegmentResultLineItems","Disclosures relating to segment result [LineItems]",null,null,null,null,null,null,null,"xbrli:stringItemType",null,null,null,"duration"]
["in-bse-fin","DescriptionOfReportableSegment","Description Of Reportable Segment",null,null,null,null,null,null,null,"xbrli:stringItemType",null,null,null,"duration"]
["in-bse-fin","SegmentProfitLossBeforeTaxAndFinanceCosts","Segment profit (loss) before tax and interest","Profit (loss) before tax and interest",null,null,null,null,null,null,"xbrli:monetaryItemType",null,null,null,"duration"]
["in-bse-fin","SegmentProfitLossBeforeTaxAndFinanceCosts","Segment profit (loss) before tax and interest","Total Profit before tax",null,null,null,null,null,null,"xbrli:monetaryItemType",null,null,null,"duration"]
["in-bse-fin","SegmentFinanceCosts","Interest","i. Finance cost",null,null,null,null,null,null,"xbrli:monetaryItemType",null,null,null,"duration"]
["in-bse-fin","OtherUnallocableExpenditureNetOffUnAllocableIncome","Other Unallocable Expenditure net off Un-allocable income","ii. Other Unallocable Expenditure net off Unallocable income",null,null,null,null,null,null,"xbrli:monetaryItemType",null,null,null,"duration"]
["in-bse-fin","ProfitBeforeTax","Total profit before tax","Profit before tax",null,null,null,null,null,null,"xbrli:monetaryItemType",null,null,null,"duration"]
[null,"SegmentProfitBeforeTax",null,"Profit  before  tax ",null,null,null,null,null,null,"xbrli:monetaryItemType",null,null,null,"duration"]
["in-bse-fin","DisclosuresRelatingToSegmentCapitalEmployedAbsract","Disclosures relating to Segment capital employed [Abstract]",null,null,null,null,null,null,null,"xbrli:stringItemType",null,null,null,"duration"]
["in-bse-fin","DisclosuresRelatingToSegmentCapitalEmployedTable","Disclosures relating to Segment capital employed [Table]",null,null,null,null,null,null,null,"xbrli:stringItemType",null,null,null,"duration"]
["in-bse-fin","ReportableSegmentsAxis_2","Reportable segments [Axis]"]
["in-bse-fin","ReportableSegmentsMember_2","Reportable segments [Member]"]
["in-bse-fin","ReportableSegments1Member_2","Reportable segments 1 [Member]"]
["in-bse-fin","ReportableSegments2Member_2","Reportable segments 2 [Member]"]
["in-bse-fin","ReportableSegments3Member_2","Reportable segments 3 [Member]"]
["in-bse-fin","ReportableSegments4Member_2","Reportable segments 4 [Member]"]
["in-bse-fin","ReportableSegments5Member_2","Reportable segments 5 [Member]"]
["in-bse-fin","ReportableSegments6Member_2","Reportable segments 6 [Member]"]
["in-bse-fin","ReportableSegments7Member_2","Reportable segments 7 [Member]"]
["in-bse-fin","ReportableSegments8Member_2","Reportable segments 8 [Member]"]
["in-bse-fin","ReportableSegments9Member_2","Reportable segments 9 [Member]"]
["in-bse-fin","ReportableSegments10Member_2","Reportable segments 10 [Member]"]
["in-bse-fin","ReportableSegments11Member_2","Reportable segments 11 [Member]"]
["in-bse-fin","ReportableSegments12Member_2","Reportable segments 12 [Member]"]
["in-bse-fin","ReportableSegments13Member_2","Reportable segments 13 [Member]"]
["in-bse-fin","ReportableSegments14Member_2","Reportable segments 14 [Member]"]
["in-bse-fin","ReportableSegments15Member_2","Reportable segments 15 [Member]"]
["in-bse-fin","DisclosuresRelatingToSegmentCapitalEmployedLineItems","Disclosures relating to segment Segment capital employed [Line Items]",null,null,null,null,null,null,null,"xbrli:stringItemType",null,null,null,"duration"]
["in-bse-fin","DescriptionOfReportableSegment","Description Of Reportable Segment","Description Of reportable segments",null,null,null,null,null,null,"xbrli:stringItemType",null,null,null,"duration"]
["in-bse-fin","CapitalEmployed","Capital Employed","Capital Employed",null,null,null,null,null,null,"xbrli:monetaryItemType",null,null,null,"duration"]
["in-bse-fin","CapitalEmployed","Total capital employed","Total Capital Employed",null,null,null,null,null,null,"xbrli:monetaryItemType",null,null,null,"duration"]
["in-bse-fin","DisclosureOfNotesOnSegmentsExplanatoryTextBlock","Disclosure of notes on segments","Disclosure of notes on segments",null,null,null,null,null,null,"nonnum:textBlockItemType",null,null,null,"duration"]
["in-bse-fin","StatementOfAssetsAndLiabilitiesAbstract","Statement of assets and liabilities [Abstract]",null,null,null,null,null,null,null,"xbrli:stringItemType",null,null,null,"duration"]
["in-bse-fin","EquityAndLiabilitiesAbstract","Equity and liabilities [Abstract]",null,null,null,null,null,null,null,"xbrli:stringItemType",null,null,null,"duration"]
["in-bse-fin","ShareholdersFundsAbstract","Shareholders' funds [Abstract]",null,null,null,null,null,null,null,"xbrli:stringItemType",null,null,null,"duration"]
["in-bse-fin","ShareCapital","Share capital","Share capital",null,null,null,null,null,null,"xbrli:monetaryItemType",null,null,null,"instant"]
["in-bse-fin","ReservesAndSurplus","Reserves and surplus","Reserves and surplus",null,null,null,null,null,null,"xbrli:monetaryItemType",null,null,null,"instant"]
["in-bse-fin","MoneyReceivedAgainstShareWarrants","Money received against share warrants","Money received against share warrants",null,null,null,null,null,null,"xbrli:monetaryItemType",null,null,null,"instant"]
["in-bse-fin","ShareholdersFunds","Total shareholders' funds","Total shareholders' funds",null,null,null,null,null,null,"xbrli:monetaryItemType",null,null,null,"instant"]
["in-bse-fin","ShareApplicationMoneyPendingAllotment","Share application money pending allotment","Share application money pending allotment",null,null,null,null,null,null,"xbrli:monetaryItemType",null,null,null,"instant"]
["in-bse-fin","DeferredGovernmentGrants","Deferred government grants","Deferred government grants",null,null,null,null,null,null,"xbrli:monetaryItemType",null,null,null,"instant"]
["in-bse-fin","MinorityInterest","Minority interest","Minority interest",null,null,null,null,null,null,"xbrli:monetaryItemType",null,null,null,"instant"]
["in-bse-fin","NoncurrentLiabilitiesAbstract","Non-current liabilities [Abstract]",null,null,null,null,null,null,null,"xbrli:stringItemType",null,null,null,"duration"]
["in-bse-fin","LongTermBorrowings","Long-term borrowings","Long-term borrowings",null,null,null,null,null,null,"xbrli:monetaryItemType",null,null,null,"instant"]
["in-bse-fin","DeferredTaxLiabilitiesNet","Deferred tax liabilities (net)","Deferred tax liabilities (net)",null,null,null,null,null,null,"xbrli:monetaryItemType",null,null,null,"instant"]
["in-bse-fin","ForeignCurrencyMonetaryItemTranslationDifferenceLiabilityAccount","Foreign currency monetary item translation difference liability account","Foreign currency monetary item translation difference liability account",null,null,null,null,null,null,"xbrli:monetaryItemType",null,null,null,"instant"]
["in-bse-fin","OtherLongTermLiabilities","Other long-term liabilities","Other long-term liabilities",null,null,null,null,null,null,"xbrli:monetaryItemType",null,null,null,"instant"]
["in-bse-fin","LongTermProvisions","Long-term provisions","Long-term provisions",null,null,null,null,null,null,"xbrli:monetaryItemType",null,null,null,"instant"]
["in-bse-fin","NoncurrentLiabilities","Total non-current liabilities","Total non-current liabilities",null,null,null,null,null,null,"xbrli:monetaryItemType",null,null,null,"instant"]
["in-bse-fin","CurrentLiabilitiesAbstract","Current liabilities [Abstract]",null,null,null,null,null,null,null,"xbrli:stringItemType",null,null,null,"duration"]
["in-bse-fin","ShortTermBorrowings","Short-term borrowings","Short-term borrowings",null,null,null,null,null,null,"xbrli:monetaryItemType",null,null,null,"instant"]
["in-bse-fin","TradePayables","Trade payables","Trade payables",null,null,null,null,null,null,"xbrli:monetaryItemType",null,null,null,"instant"]
[null,"OutstandingDuesOfMicroEnterprisesAndSmallEnterprises",null,"(A) Total outstanding dues of micro enterprises and small enterprises",null,null,null,null,null,null,"xbrli:monetaryItemType",null,null,null,"instant"]
[null,"OutstandingDuesOfCreditorsOtherThanMicroEnterprisesAndSmallEnterprises",null,"(B) Total outstanding dues of creditors other than micro enterprises and small enterprises",null,null,null,null,null,null,"xbrli:monetaryItemType",null,null,null,"instant"]
["in-bse-fin","OtherCurrentLiabilities","Other current liabilities","Other current liabilities",null,null,null,null,null,null,"xbrli:monetaryItemType",null,null,null,"instant"]
["in-bse-fin","ShortTermProvisions","Short-term provisions","Short-term provisions",null,null,null,null,null,null,"xbrli:monetaryItemType",null,null,null,"instant"]
["in-bse-fin","CurrentLiabilities","Total current liabilities","Total current liabilities",null,null,null,null,null,null,"xbrli:monetaryItemType",null,null,null,"instant"]
["in-bse-fin","EquityAndLiabilities","Total equity and liabilities","Total equity and liabilities",null,null,null,null,null,null,"xbrli:monetaryItemType",null,null,null,"instant"]
["in-bse-fin","AssetsAbstract","Assets [Abstract]",null,null,null,null,null,null,null,"xbrli:stringItemType",null,null,null,"duration"]
["in-bse-fin","NoncurrentAssetsAbstract","Non-current assets [Abstract]",null,null,null,null,null,null,null,"xbrli:stringItemType",null,null,null,"duration"]
["in-bse-fin","FixedAssetsAbstract","Fixed assets [Abstract]",null,null,null,null,null,null,null,"xbrli:stringItemType",null,null,null,"duration"]
["in-bse-fin","TangibleAssets","Tangible assets","Tangible assets",null,null,null,null,null,null,"xbrli:monetaryItemType",null,null,null,"instant"]
["in-bse-fin","ProducingProperties","Producing properties","Producing properties",null,null,null,null,null,null,"xbrli:monetaryItemType",null,null,null,"instant"]
["in-bse-fin","IntangibleAssets","Intangible assets","Intangible assets",null,null,null,null,null,null,"xbrli:monetaryItemType",null,null,null,"instant"]
["in-bse-fin","PreproducingProperties","Preproducing properties","Preproducing properties",null,null,null,null,null,null,"xbrli:monetaryItemType",null,null,null,"instant"]
["in-bse-fin","TangibleAssetsCapitalWorkInProgress","Tangible assets capital work-in-progress","Tangible assets capital work-in-progress",null,null,null,null,null,null,"xbrli:monetaryItemType",null,null,null,"instant"]
["in-bse-fin","IntangibleAssetsUnderDevelopmentOrWorkInProgress","Intangible assets under development or work-in-progress","Intangible assets under development or work-in-progress",null,null,null,null,null,null,"xbrli:monetaryItemType",null,null,null,"instant"]
["in-bse-fin","FixedAssets","Total fixed assets","Total fixed assets",null,null,null,null,null,null,"xbrli:monetaryItemType",null,null,null,"instant"]
["in-bse-fin","NoncurrentInvestments","Non-current investments","Non-current investments",null,null,null,null,null,null,"xbrli:monetaryItemType",null,null,null,"instant"]
["in-bse-fin","GoodwillOnConsolidation","Goodwill on consolidation","Goodwill on consolidation",null,null,null,null,null,null,"xbrli:monetaryItemType",null,null,null,"instant"]
["in-bse-fin","DeferredTaxAssetsNet","Deferred tax assets (net)","Deferred tax assets (net)",null,null,null,null,null,null,"xbrli:monetaryItemType",null,null,null,"instant"]
["in-bse-fin","ForeignCurrencyMonetaryItemTranslationDifferenceAssetAccount","Foreign currency monetary item translation difference asset account","Foreign currency monetary item translation difference asset account",null,null,null,null,null,null,"xbrli:monetaryItemType",null,null,null,"instant"]
["in-bse-fin","LongTermLoansAndAdvances","Long-term loans and advances","Long-term loans and advances",null,null,null,null,null,null,"xbrli:monetaryItemType",null,null,null,"instant"]
["in-bse-fin","OtherNoncurrentAssets","Other non-current assets","Other non-current assets",null,null,null,null,null,null,"xbrli:monetaryItemType",null,null,null,"instant"]
["in-bse-fin","NoncurrentAssets","Total non-current assets","Total non-current assets",null,null,null,null,null,null,"xbrli:monetaryItemType",null,null,null,"instant"]
["in-bse-fin","CurrentAssetsAbstract","Current assets [Abstract]",null,null,null,null,null,null,null,"xbrli:stringItemType",null,null,null,"duration"]
["in-bse-fin","CurrentInvestments","Current investments","Current investments",null,null,null,null,null,null,"xbrli:monetaryItemType",null,null,null,"instant"]
["in-bse-fin","Inventories","Inventories","Inventories",null,null,null,null,null,null,"xbrli:monetaryItemType",null,null,null,"instant"]
["in-bse-fin","TradeReceivables","Trade receivables","Trade receivables",null,null,null,null,null,null,"xbrli:monetaryItemType",null,null,null,"instant"]
["in-bse-fin","CashAndCashEquivalents","Cash and bank balances","Cash and cash equivalents",null,null,null,null,null,null,"xbrli:monetaryItemType",null,null,null,"instant"]
[null,"BankBalanceOtherThanCashAndCashEquivalents",null,"Bank balance other than cash and cash equivalents",null,null,null,null,null,null,"xbrli:monetaryItemType",null,null,null,"instant"]
["in-bse-fin","ShortTermLoansAndAdvances","Short-term loans and advances","Short-term loans and advances",null,null,null,null,null,null,"xbrli:monetaryItemType",null,null,null,"instant"]
["in-bse-fin","OtherCurrentAssets","Other current assets","Other current assets",null,null,null,null,null,null,"xbrli:monetaryItemType",null,null,null,"instant"]
["in-bse-fin","CurrentAssets","Total current assets","Total current assets",null,null,null,null,null,null,"xbrli:monetaryItemType",null,null,null,"instant"]
["in-bse-fin","Assets","Total assets","Total assets",null,null,null,null,null,null,"xbrli:monetaryItemType",null,null,null,"instant",null,null,null,"\"Total Assets\" must match with \"Total Equity and Liabilities\" mentioned in sheet \"Asset Liabilities\""]
["in-bse-fin","DisclosureOfNotesOnAssetsAndLiabilitiesExplanatoryTextBlock","Disclosure of notes on assets and liabilities","Disclosure of notes on assets and liabilities",null,null,null,null,null,null,"nonnum:textBlockItemType",null,null,null,"duration",null,null,null,null,null,null,null,null,null,null,null,null,null,null,null,null,null,null,null,null,null,null,null,null,null,null,null,null,null,null,1]
["in-bse-fin","StatementOfFinancialResultsMainAbstract","Statement of financial results Main [Abstract]",null,null,null,null,null,null,null,"xbrli:stringItemType",null,null,null,"duration"]
["in-bse-fin","RevenueAbstract","Revenue [Abstract]",null,null,null,null,null,null,null,"xbrli:stringItemType",null,null,null,"duration"]
["in-bse-fin","RevenueFromSales","Net revenue from operations",null,null,null,null,null,null,null,"xbrli:monetaryItemType",null,null,null,"duration",null,null,null,"\"Total revenue from operations \" must match with \"Net revenue from operations \" mentioned in sheet \"Financial Results\""]
["in-bse-fin","OtherOperatingRevenues","Other operating revenues","Other operating revenues",null,null,null,null,null,null,"xbrli:monetaryItemType",null,null,null,"duration",null,null,null,"\"Other operating revenues\" must match with \"Other operating revenues\" mentioned in sheet \"Financial Results\""]
["in-bse-fin","RevenueFromOperations","Total Revenue from operations (net)","Total Revenue from operations (net)",null,null,null,null,null,null,"xbrli:monetaryItemType",null,null,null,"duration"]
["in-bse-fin","ExpensesAbstract","Expenses [Abstract]","Expenses",null,null,null,null,null,null,"xbrli:stringItemType",null,null,null,"duration"]
["in-bse-fin","CostOfMaterialsConsumed","Cost of materials consumed","Cost of materials consumed",null,null,null,null,null,null,"xbrli:monetaryItemType",null,null,null,"duration"]
["in-bse-fin","PurchasesOfStockInTrade","Purchases of stock-in-trade","Purchases of stock-in-trade",null,null,null,null,null,null,"xbrli:monetaryItemType",null,null,null,"duration"]
["in-bse-fin","ChangesInInventoriesOfFinishedGoodsWorkInProgressAndStockInTrade","Changes in inventories of finished goods, work-in-progress and stock-in-trade","Changes in inventories of finished goods, work-in-progress and stock-in-trade",null,null,null,null,null,null,"xbrli:monetaryItemType",null,null,null,"duration",null,null,null,"\"Changes in inventories of finished goods, work-in-progress and stock-in-trade\" must match with \"Total changes in inventories of finished goods, work-in-progress and stock-in-trade\" mentioned in sheet \"Financial Result\""]
["in-bse-fin","EmployeeBenefitExpense","Employee benefit expense","Employee benefit expense  ",null,null,null,null,null,null,"xbrli:monetaryItemType",null,null,null,"duration"]
["in-bse-fin","DepreciationAndAmortisationExpense","Depreciation and amortisation expense","Depreciation and amortisation expense",null,null,null,null,null,null,"xbrli:monetaryItemType",null,null,null,"duration"]
["in-bse-fin","OtherExpenses","Total other expenses","Total other expenses",null,null,null,null,null,null,"xbrli:monetaryItemType",null,null,null,"duration",null,null,null,"\"Total other expenses\" must match with \"Total other expenses\" mentioned in sheet \"Financial Results\""]
["in-bse-fin","Expenses","Total Expenses","Total  expenses",null,null,null,null,null,null,"xbrli:monetaryItemType",null,null,null,"duration"]
["in-bse-fin","ProfitLossFromOperationsBeforeOtherIncomeFinanceCostsAndExceptionalItems","Profit (loss) from operations before other income, finance costs and exceptional items","Profit (loss) from operations before other income, finance costs and exceptional items",null,null,null,null,null,null,"xbrli:monetaryItemType",null,null,null,"duration"]
["in-bse-fin","OtherIncome","Other income","Other income",null,null,null,null,null,null,"xbrli:monetaryItemType",null,null,null,"duration"]
["in-bse-fin","ProfitLossFromOrdinaryActivatesBeforeFinanceCostsAndExceptionalItems","Profit (loss) from ordinary activates before finance costs and exceptional items","Profit (loss) from ordinary activates before finance costs and exceptional items",null,null,null,null,null,null,"xbrli:monetaryItemType",null,null,null,"duration"]
["in-bse-fin","FinanceCosts","Finance costs","Finance costs",null,null,null,null,null,null,"xbrli:monetaryItemType",null,null,null,"duration"]
["in-bse-fin","ProfitLossFromOrdinaryActivitiesAfterFinanceCostsButBeforePriorPeriodItemsAndExceptionalItems","Profit (loss) from ordinary activities after finance costs but before exceptional items","Profit (loss) from ordinary activities after finance costs but before exceptional items",null,null,null,null,null,null,"xbrli:monetaryItemType",null,null,null,"duration"]
["in-bse-fin","PriorPeriodItemsBeforeTax","Prior period items before tax","Prior period items before tax",null,null,null,null,null,null,"xbrli:monetaryItemType",null,null,null,"duration"]
["in-bse-fin","ExceptionalItems","Exceptional items","Total exceptional items ",null,null,null,null,null,null,"xbrli:monetaryItemType",null,null,null,"duration",null,null,null,"\"Total exceptional items\" must match with \"Exceptional items\" mentioned in sheet \"Financial Results\""]
["in-bse-fin","ProfitLossFromOrdinaryActivitiesBeforeTax","Profit loss from ordinary activities before tax","Profit (loss) from ordinary activities before tax",null,null,null,null,null,null,"xbrli:monetaryItemType",null,null,null,"duration"]
["in-bse-fin","TaxExpense","Tax expense","Tax Expense",null,null,null,null,null,null,"xbrli:monetaryItemType",null,null,null,"duration"]
["in-bse-fin","ProfitLossForThePeriodFromContinuingOperations","Net profit loss from ordinary activities after tax","Net Profit Loss for the period from continuing operations",null,null,null,null,null,null,"xbrli:monetaryItemType",null,null,null,"duration"]
["in-bse-fin","ExtraordinaryItems","Extraordinary items","Total extraordinary items",null,null,null,null,null,null,"xbrli:monetaryItemType",null,null,null,"duration",null,null,null,"\"Total extraordinary items\" must match with \"Extraordinary items\" mentioned in sheet \"Financial Results\""]
["in-bse-fin","ProfitLossForThePeriod","Net Profit Loss for the period","Net profit (loss) for the period",null,null,null,null,null,null,"xbrli:monetaryItemType",null,null,null,"duration"]
["in-bse-fin","ProfitLossForThePeriodFromContinuingOperations","Net Profit Loss for the period from continuing operations","Net Profit Loss for the period from continuing operations",null,null,null,null,null,null,"xbrli:monetaryItemType",null,null,null,"duration"]
["in-bse-fin","ProfitLossFromDiscontinuingOperationsBeforeTax","Profit (loss) from discontinuing operations before tax","Profit (loss) from discontinuing operations before tax",null,null,null,null,null,null,"xbrli:monetaryItemType",null,null,null,"duration"]
["in-bse-fin","TaxExpenseOfDiscontinuingOperations","Tax expense of discontinuing operations","Tax expense of discontinuing operations",null,null,null,null,null,null,"xbrli:monetaryItemType",null,null,null,"duration"]
["in-bse-fin","ProfitLossFromDiscontinuingOperationAfterTax","Net profit (loss) from discontinuing operation after tax","Net profit (loss) from discontinuing operation after tax",null,null,null,null,null,null,"xbrli:monetaryItemType",null,null,null,"duration"]
["in-bse-fin","ProfitLossForPeriodBeforeMinorityInterest","Profit (loss) for period before minority interest","Profit (loss) for period before minority interest",null,null,null,null,null,null,"xbrli:monetaryItemType",null,null,null,"duration"]
["in-bse-fin","ShareOfProfitLossOfAssociates","Share of profit (loss) of associates","Share of profit (loss) of associates",null,null,null,null,null,null,"xbrli:monetaryItemType",null,null,null,"duration"]
["in-bse-fin","ProfitLossOfMinorityInterest","Minority interest","Profit (loss) of minority interest",null,null,null,null,null,null,"xbrli:monetaryItemType",null,null,null,"duration"]
["in-bse-fin","ProfitLossAfterTaxesMinorityInterestAndShareOfProfitLossOfAssociates","Net Profit (loss) after taxes minority interest and share of profit (loss) of associates","Net Profit (loss) after taxes minority interest and share of profit (loss) of associates",null,null,null,null,null,null,"xbrli:monetaryItemType",null,null,null,"duration"]
["in-bse-fin","DetailsOfPaidupEquityShareCapitalAbstract","Details of paid up equity share capital [Abstract]","Details of equity share capital",null,null,null,null,null,null,"xbrli:stringItemType",null,null,null,"duration"]
["in-bse-fin","PaidUpValueOfEquityShareCapital","Paid-up equity share capital","Paid-up equity share capital",null,null,null,null,null,null,"xbrli:monetaryItemType",null,null,null,"duration"]
["in-bse-fin","FaceValueOfEquityShareCapital","Face value of equity share capital","Face value of equity share capital",null,null,null,null,null,null,"num:perShareItemType",null,null,null,"duration"]
["in-bse-fin","PaidUpValueOfDebtCapital","Paid-up debt capital","Paid-up debt capital",null,null,null,null,null,null,"xbrli:monetaryItemType",null,null,null,"duration"]
["in-bse-fin","FaceValueOfDebtSecurities","Face value of debt securities","Face value of debt securities",null,null,null,null,null,null,"num:perShareItemType",null,null,null,"duration"]
["in-bse-fin","DebentureRedemptionReserve","Debenture redemption reserve","Debenture redemption reserve",null,null,null,null,null,null,"xbrli:monetaryItemType",null,null,null,"duration"]
["in-bse-fin","ReserveExcludingRevaluationReserves","Reserve excluding revaluation reserves","Reserves excluding revaluation reserve",null,null,null,null,null,null,"xbrli:monetaryItemType",null,null,null,"duration"]
["in-bse-fin","EarningsPerShareAbstract","Earnings per share [Abstract]","Earnings per share",null,null,null,null,null,null,"xbrli:stringItemType",null,null,null,"duration"]
["in-bse-fin","EarningsPerShareBeforeExtraordinaryItemsAbstract","Earnings per share before extraordinary items [Abstract]","Earnings per share before extraordinary items ",null,null,null,null,null,null,"xbrli:stringItemType",null,null,null,"duration"]
["in-bse-fin","BasicEarningsPerShareBeforeExtraordinaryItems","Basic earnings per share before extraordinary items","Basic earnings per share before extraordinary items",null,null,null,null,null,null,"num:perShareItemType",null,null,null,"duration"]
["in-bse-fin","DilutedEarningsPerShareBeforeExtraordinaryItems","Diluted earnings per share before extraordinary items","Diluted earnings per share before extraordinary items",null,null,null,null,null,null,"num:perShareItemType",null,null,null,"duration"]
["in-bse-fin","EarningsPerShareAfterExtraordinaryItemsAbstract","Earnings per share after extraordinary items [Abstract]","Earnings per share after extraordinary items",null,null,null,null,null,null,"xbrli:stringItemType",null,null,null,"duration"]
["in-bse-fin","BasicEarningsPerShareAfterExtraordinaryItems","Basic earnings per share after extraordinary items","Basic earnings per share after extraordinary items",null,null,null,null,null,null,"num:perShareItemType",null,null,null,"duration"]
["in-bse-fin","DilutedEarningsPerShareAfterExtraordinaryItems","Diluted earnings per share after extraordinary items","Diluted earnings per share after extraordinary items",null,null,null,null,null,null,"num:perShareItemType",null,null,null,"duration"]
["in-bse-fin","DebtEquityRatio","Debt equity ratio","Debt equity ratio",null,null,null,null,null,null,"num:percentItemType",null,null,null,"duration"]
["in-bse-fin","DebtServiceCoverageRatio","Debt service coverage ratio","Debt service coverage ratio",null,null,null,null,null,null,"num:percentItemType",null,null,null,"duration"]
["in-bse-fin","InterestServiceCoverageRatio","Interest service coverage ratio","Interest service coverage ratio",null,null,null,null,null,null,"num:percentItemType",null,null,null,"duration"]
["in-bse-fin","DisclosureOfNotesOnFinancialResultsExplanatoryTextBlock","Disclosure of notes on financial results","Disclosure of notes on financial results",null,null,null,null,null,null,"nonnum:textBlockItemType",null,null,null,"duration"]
[null,"RevenueFromOperations",null,"Revenue from operations",null,null,null,null,null,null,"xbrli:monetaryItemType",null,null,null,"duration"]
[null,"Revenue",null,"Total Revenue",null,null,null,null,null,null,"xbrli:monetaryItemType",null,null,null,"duration"]
[null,"FinanceCosts",null,"Finance costs",null,null,null,null,null,null,"xbrli:monetaryItemType",null,null,null,"duration"]
[null,"ProfitBeforeExceptionalAndExtraordinaryItemsAndTax",null,"Profit before exceptional and extraordinary items and tax ",null,null,null,null,null,null,"xbrli:monetaryItemType",null,null,null,"duration"]
[null,"ProfitBeforeExtraordinaryItemsAndTax",null,"Profit before extraordinary items and tax",null,null,null,null,null,null,"xbrli:monetaryItemType",null,null,null,"duration"]
[null,"CurrentTax",null,"Current tax",null,null,null,null,null,null,"xbrli:monetaryItemType",null,null,null,"duration"]
[null,"DeferredTax",null,"Deferred tax",null,null,null,null,null,null,"xbrli:monetaryItemType",null,null,null,"duration"]
[null,"BasicEarningsLossPerShareFromContinuingAndDiscontinuedOperations",null,"Basic earnings (loss) per share from continuing and discontinued operations",null,null,null,null,null,null,"num:perShareItemType",null,null,null,"duration"]
[null,"DilutedEarningsLossPerShareFromContinuingAndDiscontinuedOperations",null,"Diluted earnings (loss) per share from continuing and discontinued operations",null,null,null,null,null,null,"num:perShareItemType",null,null,null,"duration"]
["in-bse-fin","DetailsOfOtherExpensesAbstract","Details of Other expenses [Abstract]",null,null,null,null,null,null,null,"xbrli:stringItemType",null,null,null,"duration"]
["in-bse-fin","DetailsOfOtherExpensesTable","Details of Other expenses [Table]",null,null,null,null,null,null,null,"xbrli:stringItemType",null,null,null,"duration"]
["in-bse-fin","DetailsOfOtherExpensesAxis","Details of Other expenses [Axis]",null,null,null,null,null,null,null,"xbrli:stringItemType",null,null,null,"duration"]
["in-bse-fin","OtherExpenses1Member","Other expenses 1 [Member]",null,null,null,null,null,null,null,"nonnum:domainItemType",null,null,null,"duration"]
["in-bse-fin","OtherExpenses2Member","Other expenses 2 [Member]",null,null,null,null,null,null,null,"nonnum:domainItemType",null,null,null,"duration"]
["in-bse-fin","OtherExpenses3Member","Other expenses 3 [Member]",null,null,null,null,null,null,null,"nonnum:domainItemType",null,null,null,"duration"]
["in-bse-fin","OtherExpenses4Member","Other expenses 4 [Member]",null,null,null,null,null,null,null,"nonnum:domainItemType",null,null,null,"duration"]
["in-bse-fin","OtherExpenses5Member","Other expenses 5 [Member]",null,null,null,null,null,null,null,"nonnum:domainItemType",null,null,null,"duration"]
["in-bse-fin","OtherExpenses6Member","Other expenses 6 [Member]",null,null,null,null,null,null,null,"nonnum:domainItemType",null,null,null,"duration"]
["in-bse-fin","OtherExpenses7Member","Other expenses 7 [Member]",null,null,null,null,null,null,null,"nonnum:domainItemType",null,null,null,"duration"]
["in-bse-fin","OtherExpenses8Member","Other expenses 8 [Member]",null,null,null,null,null,null,null,"nonnum:domainItemType",null,null,null,"duration"]
["in-bse-fin","OtherExpenses9Member","Other expenses 9 [Member]",null,null,null,null,null,null,null,"nonnum:domainItemType",null,null,null,"duration"]
["in-bse-fin","OtherExpenses10Member","Other expenses 10 [Member]",null,null,null,null,null,null,null,"nonnum:domainItemType",null,null,null,"duration"]
["in-bse-fin","DetailsOfOtherExpensesLineItems","Details of Other expenses  [Line Items]",null,null,null,null,null,null,null,"xbrli:stringItemType",null,null,null,"duration"]
["in-bse-fin","DescriptionOfOtherExpenses","Description of other expenses","Description of other expenses",null,null,null,null,null,null,"xbrli:stringItemType",null,null,null,"duration"]
["in-bse-fin","OtherExpenses","Other expenses","Other expenses",null,null,null,null,null,null,"xbrli:monetaryItemType",null,null,null,"duration"]
["in-bse-fin","SubclassificationOfIncomeAndExpensesAbstract","Subclassification of income and expenses [Abstract]",null,null,null,null,null,null,null,"xbrli:stringItemType",null,null,null,"duration"]
["in-bse-fin","DisclosureOfRevenueFromOperationsAbstract","Disclosure of revenue from operations [Abstract]","Disclosure of revenue from operations ",null,null,null,null,null,null,"xbrli:stringItemType",null,null,null,"duration"]
["in-bse-fin","RevenueFromSaleOfProducts","Revenue from sale of products","Revenue from sale of products",null,null,null,null,null,null,"xbrli:monetaryItemType",null,null,null,"duration"]
["in-bse-fin","RevenueFromSaleOfServices","Revenue from sale of services","Revenue from sale of services",null,null,null,null,null,null,"xbrli:monetaryItemType",null,null,null,"duration"]
["in-bse-fin","RevenueFromInterest","Revenue from Interest","Revenue from interest (NBFC)",null,null,null,null,null,null,"xbrli:monetaryItemType",null,null,null,"duration"]
["in-bse-fin","RevenueFromOtherFinancialServices","Revenue from Other financial Services","Revenue from other financial services (NBFC)",null,null,null,null,null,null,"xbrli:monetaryItemType",null,null,null,"duration"]
["in-bse-fin","OtherOperatingRevenues","Other operating revenues","Other operating revenues",null,null,null,null,null,null,"xbrli:monetaryItemType",null,null,null,"duration"]
["in-bse-fin","ExciseDuty","Excise duty","Less: Excise duty",null,null,null,null,null,null,"xbrli:monetaryItemType",null,null,null,"duration"]
["in-bse-fin","ServiceTaxCollected","Service tax collected","Less: Service tax collected",null,null,null,null,null,null,"xbrli:monetaryItemType",null,null,null,"duration"]
["in-bse-fin","OtherDutiesTaxesCollected","Other duties taxes collected","Less: Other duties taxes collected",null,null,null,null,null,null,"xbrli:monetaryItemType",null,null,null,"duration"]
["in-bse-fin","Sales","Total revenue from operations ","Net sales or Revenue from Operations",null,null,null,null,null,null,"xbrli:monetaryItemType",null,null,null,"duration",null,null,null,"\"Total revenue from operations \" must match with \"Net revenue from operations \" mentioned in sheet \"Financial Results\""]
["in-bse-fin","DisclosureOfOtherOperatingRevenuesAbstract","Disclosure of other operating revenues [Abstract]","Disclosure of other operating revenues ",null,null,null,null,null,null,"xbrli:stringItemType",null,null,null,"duration"]
["in-bse-fin","OtherOperatingRevenuesAbstract","Other operating revenues [Abstract]","Other operating revenues [Abstract]",null,null,null,null,null,null,"xbrli:stringItemType",null,null,null,"duration"]
["in-bse-fin","NetGainLossOnForeignCurrencyFluctuationsTreatedAsOtherOperatingRevenue","Net gain/loss on foreign currency fluctuations treated as other operating revenue","Net gain/loss on foreign currency fluctuations treated as other operating revenue",null,null,null,null,null,null,"xbrli:monetaryItemType",null,null,null,"duration"]
["in-bse-fin","MiscellaneousOtherOperatingRevenues","Miscellaneous other operating revenues","Miscellaneous other operating revenues",null,null,null,null,null,null,"xbrli:monetaryItemType",null,null,null,"duration"]
["in-bse-fin","OtherOperatingRevenues","Total other operating revenues","Total other operating revenues",null,null,null,null,null,null,"xbrli:monetaryItemType",null,null,null,"duration",null,null,null,"\"Total other operating revenues\" must match with \"Other operating revenues\" mentioned in sheet \"Financial Results\""]
["in-bse-fin","DisclosureOfOtherIncomeAbstract","Disclosure of other income [Abstract]","Disclosure of other income",null,null,null,null,null,null,"xbrli:stringItemType",null,null,null,"duration"]
["in-bse-fin","InterestIncomeAbstract","Interest income [Abstract]","Interest income",null,null,null,null,null,null,"xbrli:stringItemType",null,null,null,"duration"]
["in-bse-fin","InterestIncomeOnCurrentInvestmentsAbstract","Interest income on current investments [Abstract]","Interest income on current investments [Abstract]",null,null,null,null,null,null,"xbrli:stringItemType",null,null,null,"duration"]
["in-bse-fin","InterestOnFixedDepositsCurrentInvestments","Interest on fixed deposits, current investments","Interest on fixed deposits, current investments",null,null,null,null,null,null,"xbrli:monetaryItemType",null,null,null,"duration"]
["in-bse-fin","InterestFromCustomersOnAmountsOverdueCurrentInvestments","Interest from customers on amounts overdue, current investments","Interest from customers on amounts overdue, current investments",null,null,null,null,null,null,"xbrli:monetaryItemType",null,null,null,"duration"]
["in-bse-fin","InterestOnCurrentIntercorporateDeposits","Interest on current intercorporate deposits","Interest on current intercorporate deposits",null,null,null,null,null,null,"xbrli:monetaryItemType",null,null,null,"duration"]
["in-bse-fin","InterestOnCurrentDebtSecurities","Interest on current debt securities","Interest on current debt securities",null,null,null,null,null,null,"xbrli:monetaryItemType",null,null,null,"duration"]
["in-bse-fin","InterestOnCurrentGovernmentSecurities","Interest on current government securities","Interest on current government securities",null,null,null,null,null,null,"xbrli:monetaryItemType",null,null,null,"duration"]
["in-bse-fin","InterestOnOtherCurrentInvestments","Interest on other current investments","Interest on other current investments",null,null,null,null,null,null,"xbrli:monetaryItemType",null,null,null,"duration"]
["in-bse-fin","InterestIncomeOnCurrentInvestments","Total interest income on current investments","Total interest income on current investments",null,null,null,null,null,null,"xbrli:monetaryItemType",null,null,null,"duration"]
["in-bse-fin","InterestIncomeOnLongTermInvestmentsAbstract","Interest income on long-term investments [Abstract]","Interest income on long-term investments",null,null,null,null,null,null,"xbrli:stringItemType",null,null,null,"duration"]
["in-bse-fin","InterestOnFixedDepositsLongTermInvestments","Interest on fixed deposits, long-term investments","Interest on fixed deposits, long-term investments",null,null,null,null,null,null,"xbrli:monetaryItemType",null,null,null,"duration"]
["in-bse-fin","InterestFromCustomersOnAmountsOverdueLongTermInvestments","Interest from customers on amounts overdue, long-term investments","Interest from customers on amounts overdue, long-term investments",null,null,null,null,null,null,"xbrli:monetaryItemType",null,null,null,"duration"]
["in-bse-fin","InterestOnLongTermIntercorporateDeposits","Interest on long-term intercorporate deposits","Interest on long-term intercorporate deposits",null,null,null,null,null,null,"xbrli:monetaryItemType",null,null,null,"duration"]
["in-bse-fin","InterestOnLongTermDebtSecurities","Interest on long-term debt securities","Interest on long-term debt securities",null,null,null,null,null,null,"xbrli:monetaryItemType",null,null,null,"duration"]
["in-bse-fin","InterestOnLongTermGovernmentSecurities","Interest on long-term government securities","Interest on long-term government securities",null,null,null,null,null,null,"xbrli:monetaryItemType",null,null,null,"duration"]
["in-bse-fin","InterestOnOtherLongTermInvestments","Interest on other long-term investments","Interest on other long-term investments",null,null,null,null,null,null,"xbrli:monetaryItemType",null,null,null,"duration"]
["in-bse-fin","InterestIncomeOnLongTermInvestments","Total interest income on long-term investments","Total interest income on long-term investments",null,null,null,null,null,null,"xbrli:monetaryItemType",null,null,null,"duration"]
["in-bse-fin","InterestIncome","Total interest income","Total interest income",null,null,null,null,null,null,"xbrli:monetaryItemType",null,null,null,"duration"]
["in-bse-fin","DividendIncomeAbstract","Dividend income [Abstract]","Dividend income [Abstract]",null,null,null,null,null,null,"xbrli:stringItemType",null,null,null,"duration"]
["in-bse-fin","DividendIncomeCurrentInvestmentsAbstract","Dividend income current investments [Abstract]","Dividend income current investments",null,null,null,null,null,null,"xbrli:stringItemType",null,null,null,"duration"]
["in-bse-fin","DividendIncomeCurrentInvestmentsFromSubsidiaries","Dividend income current investments from subsidiaries","Dividend income current investments from subsidiaries",null,null,null,null,null,null,"xbrli:monetaryItemType",null,null,null,"duration"]
["in-bse-fin","DividendIncomeCurrentEquitySecurities","Dividend income current equity securities","Dividend income current equity securities",null,null,null,null,null,null,"xbrli:monetaryItemType",null,null,null,"duration"]
["in-bse-fin","DividendIncomeCurrentMutualFunds","Dividend income current mutual funds","Dividend income current mutual funds",null,null,null,null,null,null,"xbrli:monetaryItemType",null,null,null,"duration"]
["in-bse-fin","DividendIncomeCurrentInvestmentsFromOthers","Dividend income current investments from others","Dividend income current investments from others",null,null,null,null,null,null,"xbrli:monetaryItemType",null,null,null,"duration"]
["in-bse-fin","DividendIncomeCurrentInvestments","Total dividend income current investments","Total dividend income current investments",null,null,null,null,null,null,"xbrli:monetaryItemType",null,null,null,"duration"]
["in-bse-fin","DividendIncomeLongTermInvestmentsAbstract","Dividend income long-term investments [Abstract]","Dividend income long-term investments",null,null,null,null,null,null,"xbrli:stringItemType",null,null,null,"duration"]
["in-bse-fin","DividendIncomeLongTermInvestmentsFromSubsidiaries","Dividend income long-term investments from subsidiaries","Dividend income long-term investments from subsidiaries",null,null,null,null,null,null,"xbrli:monetaryItemType",null,null,null,"duration"]
["in-bse-fin","DividendIncomeLongTermEquitySecurities","Dividend income long-term equity securities","Dividend income long-term equity securities",null,null,null,null,null,null,"xbrli:monetaryItemType",null,null,null,"duration"]
["in-bse-fin","DividendIncomeLongTermMutualFunds","Dividend income long-term mutual funds","Dividend income long-term mutual funds",null,null,null,null,null,null,"xbrli:monetaryItemType",null,null,null,"duration"]
["in-bse-fin","DividendIncomeLongTermInvestmentsFromOthers","Dividend income long-term investments from others","Dividend income long-term investments from others",null,null,null,null,null,null,"xbrli:monetaryItemType",null,null,null,"duration"]
["in-bse-fin","DividendIncomeLongTermInvestments","Total dividend income long-term investments","Total dividend income long-term investments",null,null,null,null,null,null,"xbrli:monetaryItemType",null,null,null,"duration"]
["in-bse-fin","DividendIncome","Total dividend income","Total dividend income",null,null,null,null,null,null,"xbrli:monetaryItemType",null,null,null,"duration"]
["in-bse-fin","NetGainLossOnSaleOfInvestmentsAbstract","Net gain/loss on sale of investments [Abstract]","Net gain/loss on sale of investments [Abstract]",null,null,null,null,null,null,"xbrli:stringItemType",null,null,null,"duration"]
["in-bse-fin","NetGainLossOnSaleOfCurrentInvestments","Net gain/loss on sale of current investments","Net gain/loss on sale of current investments",null,null,null,null,null,null,"xbrli:monetaryItemType",null,null,null,"duration"]
["in-bse-fin","NetGainLossOnSaleOfLongTermInvestments","Net gain/loss on sale of long-term investments","Net gain/loss on sale of long-term investments",null,null,null,null,null,null,"xbrli:monetaryItemType",null,null,null,"duration"]
["in-bse-fin","NetGainLossOnSaleOfInvestments","Total net gain/loss on sale of investments","Total net gain/loss on sale of investments",null,null,null,null,null,null,"xbrli:monetaryItemType",null,null,null,"duration"]
["in-bse-fin","RentalIncomeOnInvestmentPropertyAbstract","Rental income on investment property [Abstract]","Rental income on investment property [Abstract]",null,null,null,null,null,null,"xbrli:stringItemType",null,null,null,"duration"]
["in-bse-fin","RentalIncomeOnInvestmentPropertyCurrent","Rental income on investment property, current","Rental income on investment property, current",null,null,null,null,null,null,"xbrli:monetaryItemType",null,null,null,"duration"]
["in-bse-fin","RentalIncomeOnInvestmentPropertyLongTerm","Rental income on investment property, long-term","Rental income on investment property, long-term",null,null,null,null,null,null,"xbrli:monetaryItemType",null,null,null,"duration"]
["in-bse-fin","RentalIncomeOnInvestmentProperty","Total rental income on investment property","Total rental income on investment property",null,null,null,null,null,null,"xbrli:monetaryItemType",null,null,null,"duration"]
["in-bse-fin","OtherNonoperatingIncomeAbstract","Other non-operating income [Abstract]","Other non-operating income [Abstract]",null,null,null,null,null,null,"xbrli:stringItemType",null,null,null,"duration"]
["in-bse-fin","NetGainLossOnForeignCurrencyFluctuationsTreatedAsOtherIncome","Net gain/loss on foreign currency fluctuations treated as other income","Net gain/loss on foreign currency fluctuations treated as other income",null,null,null,null,null,null,"xbrli:monetaryItemType",null,null,null,"duration"]
["in-bse-fin","SurplusOnDisposalDiscardDemolishmentAndDestructionOfDepreciableTangibleAsset","Surplus on disposal, discard, demolishment and destruction of depreciable tangible asset","Surplus on disposal, discard, demolishment and destruction of depreciable tangible asset",null,null,null,null,null,null,"xbrli:monetaryItemType",null,null,null,"duration"]
["in-bse-fin","GainOnDisposalOfIntangibleAsset","Gain on disposal of intangible asset","Gain on disposal of intangible asset",null,null,null,null,null,null,"xbrli:monetaryItemType",null,null,null,"duration"]
["in-bse-fin","AmountCreditedToProfitAndLossAsTransferFromRevaluationReserveOnAccountOfAdditionalDepreciationChargedOnRevaluedTangibleAssets","Amount credited to profit and loss as transfer from revaluation reserve on account of additional depreciation charged on revalued tangible assets","Amount credited to profit and loss as transfer from revaluation reserve on account of additional depreciation charged on revalued tangible assets",null,null,null,null,null,null,"xbrli:monetaryItemType",null,null,null,"duration"]
["in-bse-fin","ExcessProvisionDiminutionInValueInvestmentWrittenBack","Excess provision diminution in value investment written back","Excess provision diminution in value investment written back",null,null,null,null,null,null,"xbrli:monetaryItemType",null,null,null,"duration"]
["in-bse-fin","ExcessProvisionsBadDoubtfulDebtsAdvancesWrittenBack","Excess provisions bad doubtful debts advances written back","Excess provisions bad doubtful debts advances written back",null,null,null,null,null,null,"xbrli:monetaryItemType",null,null,null,"duration"]
["in-bse-fin","IncomeGovernmentGrantsSubsidies","Income government grants subsidies","Income government grants subsidies",null,null,null,null,null,null,"xbrli:monetaryItemType",null,null,null,"duration"]
["in-bse-fin","IncomeExportIncentives","Income export incentives","Income export incentives",null,null,null,null,null,null,"xbrli:monetaryItemType",null,null,null,"duration"]
["in-bse-fin","IncomeImportEntitlements","Income import entitlements","Income import entitlements",null,null,null,null,null,null,"xbrli:monetaryItemType",null,null,null,"duration"]
["in-bse-fin","IncomeInsuranceClaims","Income insurance claims","Income insurance claims",null,null,null,null,null,null,"xbrli:monetaryItemType",null,null,null,"duration"]
["in-bse-fin","IncomeFromSubsidiaries","Income from subsidiaries","Income from subsidiaries",null,null,null,null,null,null,"xbrli:monetaryItemType",null,null,null,"duration"]
["in-bse-fin","InterestAndIncomeTaxRefund","Interest and income tax refund","Interest and income tax refund",null,null,null,null,null,null,"xbrli:monetaryItemType",null,null,null,"duration"]
["in-bse-fin","IncomeOnBrokerageCommission","Income on brokerage commission","Income on brokerage commission",null,null,null,null,null,null,"xbrli:monetaryItemType",null,null,null,"duration"]
["in-bse-fin","IncomeOnSalesTaxBenefit","Income on sales tax benefit","Income on sales tax benefit",null,null,null,null,null,null,"xbrli:monetaryItemType",null,null,null,"duration"]
["in-bse-fin","ExcessProvisionsWrittenBack","Excess provisions written back","Excess provisions written back",null,null,null,null,null,null,"xbrli:monetaryItemType",null,null,null,"duration"]
["in-bse-fin","OtherAllowancesDeductionOtherIncome","Other allowances deduction other income","Other allowances deduction other income",null,null,null,null,null,null,"xbrli:monetaryItemType",null,null,null,"duration"]
["in-bse-fin","MiscellaneousOtherNonoperatingIncome","Miscellaneous other non-operating income","Miscellaneous other non-operating income",null,null,null,null,null,null,"xbrli:monetaryItemType",null,null,null,"duration"]
["in-bse-fin","OtherNonoperatingIncome","Total other non-operating income","Total other non-operating income",null,null,null,null,null,null,"xbrli:monetaryItemType",null,null,null,"duration"]
["in-bse-fin","IncomeFromPipelineTransportation","Income from pipeline transportation","Income from pipeline transportation",null,null,null,null,null,null,"xbrli:monetaryItemType",null,null,null,"duration"]
["in-bse-fin","OtherIncome","Total other income","Total other income",null,null,null,null,null,null,"xbrli:monetaryItemType",null,null,null,"duration",null,null,null,"\"Total other income\" must match with \"Other income\" mentioned in sheet \"Financial Results\""]
["in-bse-fin","EmployeeBenefitExpenseAbstract","Employee benefit expense [Abstract]","Employee benefit expense [Abstract]",null,null,null,null,null,null,"xbrli:stringItemType",null,null,null,"duration"]
["in-bse-fin","SalariesAndWages","Salaries and wages","Salaries and wages",null,null,null,null,null,null,"xbrli:monetaryItemType",null,null,null,"duration"]
["in-bse-fin","ContributionToProvidentAndOtherFundsAbstract","Contribution to provident and other funds [Abstract]","Contribution to provident and other funds [Abstract]",null,null,null,null,null,null,"xbrli:stringItemType",null,null,null,"duration"]
["in-bse-fin","ContributionToProvidentAndOtherFundsForContractLabour","Contribution to provident and other funds for contract labour","Contribution to provident and other funds for contract labour",null,null,null,null,null,null,"xbrli:monetaryItemType",null,null,null,"duration"]
["in-bse-fin","ContributionToProvidentAndOtherFundsForOthers","Contribution to provident and other funds for others","Contribution to provident and other funds for others",null,null,null,null,null,null,"xbrli:monetaryItemType",null,null,null,"duration"]
["in-bse-fin","ContributionToProvidentAndOtherFunds","Total contribution to provident and other funds","Total contribution to provident and other funds",null,null,null,null,null,null,"xbrli:monetaryItemType",null,null,null,"duration"]
["in-bse-fin","ExpenseOnEmployeeStockOptionSchemeAndEmployeeStockPurchasePlan","Expense on employee stock option scheme and employee stock purchase plan","Expense on employee stock option scheme and employee stock purchase plan",null,null,null,null,null,null,"xbrli:monetaryItemType",null,null,null,"duration"]
["in-bse-fin","CommissionEmployees","Commission employees","Commission employees",null,null,null,null,null,null,"xbrli:monetaryItemType",null,null,null,"duration"]
["in-bse-fin","EmployeeMedicalInsuranceExpenses","Employee medical insurance expenses","Employee medical insurance expenses",null,null,null,null,null,null,"xbrli:monetaryItemType",null,null,null,"duration"]
["in-bse-fin","LeaveEncashmentExpenses","Leave encashment expenses","Leave encashment expenses",null,null,null,null,null,null,"xbrli:monetaryItemType",null,null,null,"duration"]
["in-bse-fin","Gratuity","Gratuity","Gratuity",null,null,null,null,null,null,"xbrli:monetaryItemType",null,null,null,"duration"]
["in-bse-fin","PensionSchemes","Pension schemes","Pension schemes",null,null,null,null,null,null,"xbrli:monetaryItemType",null,null,null,"duration"]
["in-bse-fin","VoluntaryRetirementCompensation","Voluntary retirement compensation","Voluntary retirement compensation",null,null,null,null,null,null,"xbrli:monetaryItemType",null,null,null,"duration"]
["in-bse-fin","OtherRetirementBenefits","Other retirement benefits","Other retirement benefits",null,null,null,null,null,null,"xbrli:monetaryItemType",null,null,null,"duration"]
["in-bse-fin","StaffWelfareExpense","Staff welfare expense","Staff welfare expense",null,null,null,null,null,null,"xbrli:monetaryItemType",null,null,null,"duration"]
["in-bse-fin","OtherEmployeeRelatedExpenses","Other employee related expenses","Other employee related expenses",null,null,null,null,null,null,"xbrli:monetaryItemType",null,null,null,"duration"]
["in-bse-fin","EmployeeBenefitExpense","Total employee benefit expense","Total employee benefit expense",null,null,null,null,null,null,"xbrli:monetaryItemType",null,null,null,"duration",null,null,null,"\"Total employee benefit expense\" must match with \"Employee benefit expense \" mentioned in sheet\" Financial Results\""]
["in-bse-fin","DisclosureOfFinanceCostAbstract","Disclosure of finance cost [Abstract]","Disclosure of finance cost [Abstract]",null,null,null,null,null,null,"xbrli:stringItemType",null,null,null,"duration"]
["in-bse-fin","InterestExpenseAbstract","Interest expense [Abstract]","Interest expense [Abstract]",null,null,null,null,null,null,"xbrli:stringItemType",null,null,null,"duration"]
["in-bse-fin","InterestExpenseLongTermLoansAbstract","Interest expense long-term loans [Abstract]","Interest expense long-term loans [Abstract]",null,null,null,null,null,null,"xbrli:stringItemType",null,null,null,"duration"]
["in-bse-fin","InterestExpenseLongTermLoansBanks","Interest expense long-term loans, banks","Interest expense long-term loans, banks",null,null,null,null,null,null,"xbrli:monetaryItemType",null,null,null,"duration"]
["in-bse-fin","InterestExpenseLongTermLoansOthers","Interest expense long-term loans, others","Interest expense long-term loans, others",null,null,null,null,null,null,"xbrli:monetaryItemType",null,null,null,"duration"]
["in-bse-fin","InterestExpenseLongTermLoans","Total interest expense long-term loans","Total interest expense long-term loans",null,null,null,null,null,null,"xbrli:monetaryItemType",null,null,null,"duration"]
["in-bse-fin","InterestExpenseShortTermLoansAbstract","Interest expense short-term loans [Abstract]","Interest expense short-term loans [Abstract]",null,null,null,null,null,null,"xbrli:stringItemType",null,null,null,"duration"]
["in-bse-fin","InterestExpenseShortTermLoansBanks","Interest expense short-term loans, banks","Interest expense short-term loans, banks",null,null,null,null,null,null,"xbrli:monetaryItemType",null,null,null,"duration"]
["in-bse-fin","InterestExpenseShortTermLoansOthers","Interest expense short-term loans, others","Interest expense short-term loans, others",null,null,null,null,null,null,"xbrli:monetaryItemType",null,null,null,"duration"]
["in-bse-fin","InterestExpenseShortTermLoans","Total interest expense short-term loans","Total interest expense short-term loans",null,null,null,null,null,null,"xbrli:monetaryItemType",null,null,null,"duration"]
["in-bse-fin","InterestExpenseDeposits","Interest expense deposits","Interest expense deposits",null,null,null,null,null,null,"xbrli:monetaryItemType",null,null,null,"duration"]
["in-bse-fin","InterestExpenseDebtSecurities","Interest expense debt securities","Interest expense debt securities",null,null,null,null,null,null,"xbrli:monetaryItemType",null,null,null,"duration"]
["in-bse-fin","InterestExpenseOtherBorrowings","Interest expense other borrowings","Interest expense other borrowings",null,null,null,null,null,null,"xbrli:monetaryItemType",null,null,null,"duration"]
["in-bse-fin","InterestExpenseBorrowings","Interest expense borrowings","Interest expense borrowings",null,null,null,null,null,null,"xbrli:monetaryItemType",null,null,null,"duration"]
["in-bse-fin","InterestLeaseFinancing","Interest lease financing","Interest lease financing",null,null,null,null,null,null,"xbrli:monetaryItemType",null,null,null,"duration"]
["in-bse-fin","OtherInterestCharges","Other interest charges","Other interest charges",null,null,null,null,null,null,"xbrli:monetaryItemType",null,null,null,"duration"]
["in-bse-fin","InterestExpense","Total interest expense","Total interest expense",null,null,null,null,null,null,"xbrli:monetaryItemType",null,null,null,"duration"]
["in-bse-fin","OtherBorrowingCosts","Other borrowing costs","Other borrowing costs",null,null,null,null,null,null,"xbrli:monetaryItemType",null,null,null,"duration"]
["in-bse-fin","NetGainLossOnForeignCurrencyTransactionsAndTranslationsTreatedAsFinanceCosts","Net gain/loss on foreign currency transactions and translations treated as finance costs","Net gain/loss on foreign currency transactions and translations treated as finance costs",null,null,null,null,null,null,"xbrli:monetaryItemType",null,null,null,"duration"]
["in-bse-fin","FinanceCosts","Total finance costs","Total finance costs",null,null,null,null,null,null,"xbrli:monetaryItemType",null,null,null,"duration",null,null,null,"\"Total finance costs\" must match with \"Finance costs\" mentioned in sheet\" Financial Results\""]
["in-bse-fin","BreakupOfOtherExpensesAbstract","Breakup of other expenses [Abstract]","Breakup of other expenses [Abstract]",null,null,null,null,null,null,"xbrli:stringItemType",null,null,null,"duration"]
["in-bse-fin","ConsumptionOfStoresAndSpareParts","Consumption of stores and spare parts","Consumption of stores and spare parts",null,null,null,null,null,null,"xbrli:monetaryItemType",null,null,null,"duration"]
["in-bse-fin","PowerAndFuel","Power and fuel","Power and fuel",null,null,null,null,null,null,"xbrli:monetaryItemType",null,null,null,"duration"]
["in-bse-fin","Rent","Rent","Rent",null,null,null,null,null,null,"xbrli:monetaryItemType",null,null,null,"duration"]
["in-bse-fin","RepairsToBuilding","Repairs to building","Repairs to building",null,null,null,null,null,null,"xbrli:monetaryItemType",null,null,null,"duration"]
["in-bse-fin","RepairsToMachinery","Repairs to machinery","Repairs to machinery",null,null,null,null,null,null,"xbrli:monetaryItemType",null,null,null,"duration"]
["in-bse-fin","Insurance","Insurance","Insurance",null,null,null,null,null,null,"xbrli:monetaryItemType",null,null,null,"duration"]
["in-bse-fin","RatesAndTaxesExcludingTaxesOnIncomeAbstract","Rates and taxes excluding taxes on income [Abstract]","Rates and taxes excluding taxes on income [Abstract]",null,null,null,null,null,null,"xbrli:stringItemType",null,null,null,"duration"]
["in-bse-fin","CentralExciseDuty","Central excise duty","Central excise duty",null,null,null,null,null,null,"xbrli:monetaryItemType",null,null,null,"duration"]
["in-bse-fin","PurchaseTax","Purchase tax","Purchase tax",null,null,null,null,null,null,"xbrli:monetaryItemType",null,null,null,"duration"]
["in-bse-fin","OtherCessTaxes","Other cess taxes","Other cess taxes",null,null,null,null,null,null,"xbrli:monetaryItemType",null,null,null,"duration"]
["in-bse-fin","CostTaxesOtherLeviesByGovernmentLocalAuthorities","Cost taxes other levies by government local authorities","Cost taxes other levies by government local authorities",null,null,null,null,null,null,"xbrli:monetaryItemType",null,null,null,"duration"]
["in-bse-fin","ProvisionWealthTax","Provision wealth tax","Provision wealth tax",null,null,null,null,null,null,"xbrli:monetaryItemType",null,null,null,"duration"]
["in-bse-fin","RatesAndTaxesExcludingTaxesOnIncome","Total rates and taxes excluding taxes on income","Total rates and taxes excluding taxes on income",null,null,null,null,null,null,"xbrli:monetaryItemType",null,null,null,"duration"]
["in-bse-fin","ResearchDevelopmentExpenditure","Research development expenditure","Research development expenditure",null,null,null,null,null,null,"xbrli:monetaryItemType",null,null,null,"duration"]
["in-bse-fin","SubscriptionsMembershipFees","Subscriptions membership fees","Subscriptions membership fees",null,null,null,null,null,null,"xbrli:monetaryItemType",null,null,null,"duration"]
["in-bse-fin","ElectricityExpenses","Electricity expenses","Electricity expenses",null,null,null,null,null,null,"xbrli:monetaryItemType",null,null,null,"duration"]
["in-bse-fin","TelephonePostage","Telephone postage","Telephone postage",null,null,null,null,null,null,"xbrli:monetaryItemType",null,null,null,"duration"]
["in-bse-fin","PrintingStationery","Printing stationery","Printing stationery",null,null,null,null,null,null,"xbrli:monetaryItemType",null,null,null,"duration"]
["in-bse-fin","InformationTechnologyExpenses","Information technology expenses","Information technology expenses",null,null,null,null,null,null,"xbrli:monetaryItemType",null,null,null,"duration"]
["in-bse-fin","TravellingConveyance","Travelling conveyance","Travelling conveyance",null,null,null,null,null,null,"xbrli:monetaryItemType",null,null,null,"duration"]
["in-bse-fin","CateringCanteenExpenses","Catering canteen expenses","Catering canteen expenses",null,null,null,null,null,null,"xbrli:monetaryItemType",null,null,null,"duration"]
["in-bse-fin","EntertainmentExpenses","Entertainment expenses","Entertainment expenses",null,null,null,null,null,null,"xbrli:monetaryItemType",null,null,null,"duration"]
["in-bse-fin","LegalProfessionalCharges","Legal professional charges","Legal professional charges",null,null,null,null,null,null,"xbrli:monetaryItemType",null,null,null,"duration"]
["in-bse-fin","TrainingRecruitmentExpenses","Training recruitment expenses","Training recruitment expenses",null,null,null,null,null,null,"xbrli:monetaryItemType",null,null,null,"duration"]
["in-bse-fin","VehicleRunningExpenses","Vehicle running expenses","Vehicle running expenses",null,null,null,null,null,null,"xbrli:monetaryItemType",null,null,null,"duration"]
["in-bse-fin","SafetySecurityExpenses","Safety security expenses","Safety security expenses",null,null,null,null,null,null,"xbrli:monetaryItemType",null,null,null,"duration"]
["in-bse-fin","DirectorsSittingFees","Directors sitting fees","Directors sitting fees",null,null,null,null,null,null,"xbrli:monetaryItemType",null,null,null,"duration"]
["in-bse-fin","ManagerialRemunerationAbstract","Managerial remuneration [Abstract]","Managerial remuneration [Abstract]",null,null,null,null,null,null,"xbrli:stringItemType",null,null,null,"duration"]
["in-bse-fin","RemunerationToDirectorsAbstract","Remuneration to directors [Abstract]","Remuneration to directors [Abstract]",null,null,null,null,null,null,"xbrli:stringItemType",null,null,null,"duration"]
["in-bse-fin","SalaryToDirectors","Salary to directors","Salary to directors",null,null,null,null,null,null,"xbrli:monetaryItemType",null,null,null,"duration"]
["in-bse-fin","CommissionToDirectors","Commission to directors","Commission to directors",null,null,null,null,null,null,"xbrli:monetaryItemType",null,null,null,"duration"]
["in-bse-fin","OtherBenefitsToDirectors","Other benefits to directors","Other benefits to directors",null,null,null,null,null,null,"xbrli:monetaryItemType",null,null,null,"duration"]
["in-bse-fin","RemunerationToDirectors","Total remuneration to directors","Total remuneration to directors",null,null,null,null,null,null,"xbrli:monetaryItemType",null,null,null,"duration"]
["in-bse-fin","RemunerationToManagersAbstract","Remuneration to managers [Abstract]","Remuneration to managers [Abstract]",null,null,null,null,null,null,"xbrli:stringItemType",null,null,null,"duration"]
["in-bse-fin","SalaryToManagers","Salary to managers","Salary to managers",null,null,null,null,null,null,"xbrli:monetaryItemType",null,null,null,"duration"]
["in-bse-fin","CommissionToManagers","Commission to managers","Commission to managers",null,null,null,null,null,null,"xbrli:monetaryItemType",null,null,null,"duration"]
["in-bse-fin","OtherBenefitsToManagers","Other benefits to managers","Other benefits to managers",null,null,null,null,null,null,"xbrli:monetaryItemType",null,null,null,"duration"]
["in-bse-fin","RemunerationToManagers","Total remuneration to managers","Total remuneration to managers",null,null,null,null,null,null,"xbrli:monetaryItemType",null,null,null,"duration"]
["in-bse-fin","ManagerialRemuneration","Total managerial remuneration","Total managerial remuneration",null,null,null,null,null,null,"xbrli:monetaryItemType",null,null,null,"duration"]
["in-bse-fin","DonationsSubscriptions","Donations subscriptions","Donations subscriptions",null,null,null,null,null,null,"xbrli:monetaryItemType",null,null,null,"duration"]
["in-bse-fin","BooksPeriodicals","Books periodicals","Books periodicals",null,null,null,null,null,null,"xbrli:monetaryItemType",null,null,null,"duration"]
["in-bse-fin","SeminarsConferenceExpenses","Seminars conference expenses","Seminars conference expenses",null,null,null,null,null,null,"xbrli:monetaryItemType",null,null,null,"duration"]
["in-bse-fin","RegistrationFilingFees","Registration filing fees","Registration filing fees",null,null,null,null,null,null,"xbrli:monetaryItemType",null,null,null,"duration"]
["in-bse-fin","CustodialFees","Custodial fees","Custodial fees",null,null,null,null,null,null,"xbrli:monetaryItemType",null,null,null,"duration"]
["in-bse-fin","BankCharges","Bank charges","Bank charges",null,null,null,null,null,null,"xbrli:monetaryItemType",null,null,null,"duration"]
["in-bse-fin","GuestHouseExpenses","Guest house expenses","Guest house expenses",null,null,null,null,null,null,"xbrli:monetaryItemType",null,null,null,"duration"]
["in-bse-fin","AdvertisingPromotionalExpenses","Advertising promotional expenses","Advertising promotional expenses",null,null,null,null,null,null,"xbrli:monetaryItemType",null,null,null,"duration"]
["in-bse-fin","AfterSalesServiceExpenses","After sales service expenses","After sales service expenses",null,null,null,null,null,null,"xbrli:monetaryItemType",null,null,null,"duration"]
["in-bse-fin","WarrantyClaimExpenses","Warranty claim expenses","Warranty claim expenses",null,null,null,null,null,null,"xbrli:monetaryItemType",null,null,null,"duration"]
["in-bse-fin","CommissionPaidSoleSellingAgents","Commission paid sole selling agents","Commission paid sole selling agents",null,null,null,null,null,null,"xbrli:monetaryItemType",null,null,null,"duration"]
["in-bse-fin","CommissionPaidOtherSellingAgents","Commission paid other selling agents","Commission paid other selling agents",null,null,null,null,null,null,"xbrli:monetaryItemType",null,null,null,"duration"]
["in-bse-fin","CommissionPaidSoleBuyingAgents","Commission paid sole buying agents","Commission paid sole buying agents",null,null,null,null,null,null,"xbrli:monetaryItemType",null,null,null,"duration"]
["in-bse-fin","TransportationDistributionExpenses","Transportation distribution expenses","Transportation distribution expenses",null,null,null,null,null,null,"xbrli:monetaryItemType",null,null,null,"duration"]
["in-bse-fin","SecondaryPackingExpenses","Secondary packing expenses","Secondary packing expenses",null,null,null,null,null,null,"xbrli:monetaryItemType",null,null,null,"duration"]
["in-bse-fin","DiscountingCharges","Discounting charges","Discounting charges",null,null,null,null,null,null,"xbrli:monetaryItemType",null,null,null,"duration"]
["in-bse-fin","GuaranteeCommission","Guarantee commission","Guarantee commission",null,null,null,null,null,null,"xbrli:monetaryItemType",null,null,null,"duration"]
["in-bse-fin","CostRepairsMaintenanceOtherAssets","Cost repairs maintenance other assets","Cost repairs maintenance other assets",null,null,null,null,null,null,"xbrli:monetaryItemType",null,null,null,"duration"]
["in-bse-fin","CostInformationTechnologyAbstract","Cost information technology [Abstract]","Cost information technology [Abstract]",null,null,null,null,null,null,"xbrli:stringItemType",null,null,null,"duration"]
["in-bse-fin","CostSoftware","Cost software","Cost software",null,null,null,null,null,null,"xbrli:monetaryItemType",null,null,null,"duration"]
["in-bse-fin","CostHardware","Cost hardware","Cost hardware",null,null,null,null,null,null,"xbrli:monetaryItemType",null,null,null,"duration"]
["in-bse-fin","CostCommunicationConnectivity","Cost communication connectivity","Cost communication connectivity",null,null,null,null,null,null,"xbrli:monetaryItemType",null,null,null,"duration"]
["in-bse-fin","CostInformationTechnology","Total cost information technology","Total cost information technology",null,null,null,null,null,null,"xbrli:monetaryItemType",null,null,null,"duration"]
["in-bse-fin","CostTransportationAbstract","Cost transportation [Abstract]","Cost transportation [Abstract]",null,null,null,null,null,null,"xbrli:stringItemType",null,null,null,"duration"]
["in-bse-fin","CostFreight","Cost freight","Cost freight",null,null,null,null,null,null,"xbrli:monetaryItemType",null,null,null,"duration"]
["in-bse-fin","CostOctroi","Cost octroi","Cost octroi",null,null,null,null,null,null,"xbrli:monetaryItemType",null,null,null,"duration"]
["in-bse-fin","CostLoadingAndUnloading","Cost loading and unloading","Cost loading and unloading",null,null,null,null,null,null,"xbrli:monetaryItemType",null,null,null,"duration"]
["in-bse-fin","CostOtherTransporting","Cost other transporting","Cost other transporting",null,null,null,null,null,null,"xbrli:monetaryItemType",null,null,null,"duration"]
["in-bse-fin","CostTransportation","Total cost transportation","Total cost transportation",null,null,null,null,null,null,"xbrli:monetaryItemType",null,null,null,"duration"]
["in-bse-fin","CostLeaseRentals","Cost lease rentals","Cost lease rentals",null,null,null,null,null,null,"xbrli:monetaryItemType",null,null,null,"duration"]
["in-bse-fin","CostEffluentDisposal","Cost effluent disposal","Cost effluent disposal",null,null,null,null,null,null,"xbrli:monetaryItemType",null,null,null,"duration"]
["in-bse-fin","ProvisionForCostOfRestoration","Provision for cost of restoration","Provision for cost of restoration",null,null,null,null,null,null,"xbrli:monetaryItemType",null,null,null,"duration"]
["in-bse-fin","CostWarehousing","Cost warehousing","Cost warehousing",null,null,null,null,null,null,"xbrli:monetaryItemType",null,null,null,"duration"]
["in-bse-fin","CostWaterCharges","Cost water charges","Cost water charges",null,null,null,null,null,null,"xbrli:monetaryItemType",null,null,null,"duration"]
["in-bse-fin","CostReimbursableExpenses","Cost reimbursable expenses","Cost reimbursable expenses",null,null,null,null,null,null,"xbrli:monetaryItemType",null,null,null,"duration"]
["in-bse-fin","CostTechnicalServices","Cost technical services","Cost technical services",null,null,null,null,null,null,"xbrli:monetaryItemType",null,null,null,"duration"]
["in-bse-fin","CostRoyalty","Cost royalty","Cost royalty",null,null,null,null,null,null,"xbrli:monetaryItemType",null,null,null,"duration"]
["in-bse-fin","ProvisionBadDoubtfulDebtsCreated","Provision bad doubtful debts created","Provision bad doubtful debts created",null,null,null,null,null,null,"xbrli:monetaryItemType",null,null,null,"duration"]
["in-bse-fin","ProvisionBadDoubtfulLoansAdvancesCreated","Provision bad doubtful loans advances created","Provision bad doubtful loans advances created",null,null,null,null,null,null,"xbrli:monetaryItemType",null,null,null,"duration"]
["in-bse-fin","AdjustmentsToCarryingAmountsOfInvestmentsAbstract","Adjustments to carrying amounts of investments [Abstract]","Adjustments to carrying amounts of investments [Abstract]",null,null,null,null,null,null,"xbrli:stringItemType",null,null,null,"duration"]
["in-bse-fin","ProvisionDiminutionValueCurrentInvestmentsCreated","Provision diminution value current investments created","Provision diminution value current investments created",null,null,null,null,null,null,"xbrli:monetaryItemType",null,null,null,"duration"]
["in-bse-fin","ProvisionDiminutionValueLongTermInvestmentsCreated","Provision diminution value long-term investments created","Provision diminution value long-term investments created",null,null,null,null,null,null,"xbrli:monetaryItemType",null,null,null,"duration"]
["in-bse-fin","AdjustmentsToCarryingAmountsOfInvestments","Total adjustments to carrying amounts of investments","Total adjustments to carrying amounts of investments",null,null,null,null,null,null,"xbrli:monetaryItemType",null,null,null,"duration"]
["in-bse-fin","NetProvisionsChargedAbstract","Net provisions charged [Abstract]","Net provisions charged [Abstract]",null,null,null,null,null,null,"xbrli:stringItemType",null,null,null,"duration"]
["in-bse-fin","ProvisionWarrantyClaimsCreated","Provision warranty claims created","Provision warranty claims created",null,null,null,null,null,null,"xbrli:monetaryItemType",null,null,null,"duration"]
["in-bse-fin","ProvisionStatutoryLiabilitiesCreated","Provision statutory liabilities created","Provision statutory liabilities created",null,null,null,null,null,null,"xbrli:monetaryItemType",null,null,null,"duration"]
["in-bse-fin","ProvisionRestructuringCreated","Provision restructuring created","Provision restructuring created",null,null,null,null,null,null,"xbrli:monetaryItemType",null,null,null,"duration"]
["in-bse-fin","OtherProvisionsCreated","Other provisions created","Other provisions created",null,null,null,null,null,null,"xbrli:monetaryItemType",null,null,null,"duration"]
["in-bse-fin","NetProvisionsCharged","Total net provisions charged","Total net provisions charged",null,null,null,null,null,null,"xbrli:monetaryItemType",null,null,null,"duration"]
["in-bse-fin","DiscountIssueSharesDebenturesWrittenOffAbstract","Discount issue shares debentures written off [Abstract]","Discount issue shares debentures written off [Abstract]",null,null,null,null,null,null,"xbrli:stringItemType",null,null,null,"duration"]
["in-bse-fin","DiscountIssueSharesWrittenOff","Discount issue shares written off","Discount issue shares written off",null,null,null,null,null,null,"xbrli:monetaryItemType",null,null,null,"duration"]
["in-bse-fin","DiscountIssueDebenturesWrittenOff","Discount issue debentures written off","Discount issue debentures written off",null,null,null,null,null,null,"xbrli:monetaryItemType",null,null,null,"duration"]
["in-bse-fin","DiscountIssueSharesDebenturesWrittenOff","Total discount issue shares debentures written off","Total discount issue shares debentures written off",null,null,null,null,null,null,"xbrli:monetaryItemType",null,null,null,"duration"]
["in-bse-fin","WriteOffAssetsLiabilitiesAbstract","Write-off assets liabilities [Abstract]","Write-off assets liabilities [Abstract]",null,null,null,null,null,null,"xbrli:stringItemType",null,null,null,"duration"]
["in-bse-fin","MiscellaneousExpenditureWrittenOffAbstract","Miscellaneous expenditure written off [Abstract]","Miscellaneous expenditure written off [Abstract]",null,null,null,null,null,null,"xbrli:stringItemType",null,null,null,"duration"]
["in-bse-fin","FinancingChargesWrittenOff","Financing charges written off","Financing charges written off",null,null,null,null,null,null,"xbrli:monetaryItemType",null,null,null,"duration"]
["in-bse-fin","VoluntaryRetirementCompensationWrittenOff","Voluntary retirement compensation written off","Voluntary retirement compensation written off",null,null,null,null,null,null,"xbrli:monetaryItemType",null,null,null,"duration"]
["in-bse-fin","TechnicalKnowHowWrittenOff","Technical know-how written off","Technical know-how written off",null,null,null,null,null,null,"xbrli:monetaryItemType",null,null,null,"duration"]
["in-bse-fin","OtherMiscellaneousExpenditureWrittenOff","Other miscellaneous expenditure written off","Other miscellaneous expenditure written off",null,null,null,null,null,null,"xbrli:monetaryItemType",null,null,null,"duration"]
["in-bse-fin","MiscellaneousExpenditureWrittenOff","Total miscellaneous expenditure written off","Total miscellaneous expenditure written off",null,null,null,null,null,null,"xbrli:monetaryItemType",null,null,null,"duration"]
["in-bse-fin","FixedAssetsWrittenOff","Fixed assets written off","Fixed assets written off",null,null,null,null,null,null,"xbrli:monetaryItemType",null,null,null,"duration"]
["in-bse-fin","InventoriesWrittenOff","Inventories written off","Inventories written off",null,null,null,null,null,null,"xbrli:monetaryItemType",null,null,null,"duration"]
["in-bse-fin","InvestmentsWrittenOff","Investments written off","Investments written off",null,null,null,null,null,null,"xbrli:monetaryItemType",null,null,null,"duration"]
["in-bse-fin","BadDebtsWrittenOff","Bad debts written off","Bad debts written off",null,null,null,null,null,null,"xbrli:monetaryItemType",null,null,null,"duration"]
["in-bse-fin","BadDebtsAdvancesWrittenOff","Bad debts advances written off","Bad debts advances written off",null,null,null,null,null,null,"xbrli:monetaryItemType",null,null,null,"duration"]
["in-bse-fin","OtherAssetsWrittenOff","Other assets written off","Other assets written off",null,null,null,null,null,null,"xbrli:monetaryItemType",null,null,null,"duration"]
["in-bse-fin","LiabilitiesWrittenOff","Liabilities written off","Liabilities written off",null,null,null,null,null,null,"xbrli:monetaryItemType",null,null,null,"duration"]
["in-bse-fin","WriteOffAssetsLiabilities","Total write-off assets liabilities","Total write-off assets liabilities",null,null,null,null,null,null,"xbrli:monetaryItemType",null,null,null,"duration"]
["in-bse-fin","LossOnDisposalOfIntangibleAsset","Loss on disposal of intangible asset","Loss on disposal of intangible asset",null,null,null,null,null,null,"xbrli:monetaryItemType",null,null,null,"duration"]
["in-bse-fin","LossOnDisposalDiscardDemolishmentAndDestructionOfDepreciableTangibleAsset","Loss on disposal, discard, demolishment and destruction of depreciable tangible asset","Loss on disposal, discard, demolishment and destruction of depreciable tangible asset",null,null,null,null,null,null,"xbrli:monetaryItemType",null,null,null,"duration"]
["in-bse-fin","ContractCostAbstract","Contract cost [Abstract]","Contract cost [Abstract]",null,null,null,null,null,null,"xbrli:stringItemType",null,null,null,"duration"]
["in-bse-fin","SiteLabourSupervisionCostContracts","Site labour supervision cost contracts","Site labour supervision cost contracts",null,null,null,null,null,null,"xbrli:monetaryItemType",null,null,null,"duration"]
["in-bse-fin","MaterialCostContract","Material cost contract","Material cost contract",null,null,null,null,null,null,"xbrli:monetaryItemType",null,null,null,"duration"]
["in-bse-fin","DepreciationAssetsContracts","Depreciation assets contracts","Depreciation assets contracts",null,null,null,null,null,null,"xbrli:monetaryItemType",null,null,null,"duration"]
["in-bse-fin","CostTransportationAssetsContracts","Cost transportation assets contracts","Cost transportation assets contracts",null,null,null,null,null,null,"xbrli:monetaryItemType",null,null,null,"duration"]
["in-bse-fin","HireChargesAssetsContracts","Hire charges assets contracts","Hire charges assets contracts",null,null,null,null,null,null,"xbrli:monetaryItemType",null,null,null,"duration"]
["in-bse-fin","CostDesignTechnicalAssistanceContracts","Cost design technical assistance contracts","Cost design technical assistance contracts",null,null,null,null,null,null,"xbrli:monetaryItemType",null,null,null,"duration"]
["in-bse-fin","WarrantyCostContracts","Warranty cost contracts","Warranty cost contracts",null,null,null,null,null,null,"xbrli:monetaryItemType",null,null,null,"duration"]
["in-bse-fin","OtherClaimsContracts","Other claims contracts","Other claims contracts",null,null,null,null,null,null,"xbrli:monetaryItemType",null,null,null,"duration"]
["in-bse-fin","SaleMaterialScrapOtherAssetsContracts","Sale material scrap other assets contracts","Sale material scrap other assets contracts",null,null,null,null,null,null,"xbrli:monetaryItemType",null,null,null,"duration"]
["in-bse-fin","OverheadCostsApportionedContractsAbstract","Overhead costs apportioned contracts [Abstract]","Overhead costs apportioned contracts [Abstract]",null,null,null,null,null,null,"xbrli:stringItemType",null,null,null,"duration"]
["in-bse-fin","InsuranceCostApportionedContract","Insurance cost apportioned contract","Insurance cost apportioned contract",null,null,null,null,null,null,"xbrli:monetaryItemType",null,null,null,"duration"]
["in-bse-fin","DesignTechnicalAssistanceApportionedContracts","Design technical assistance apportioned contracts","Design technical assistance apportioned contracts",null,null,null,null,null,null,"xbrli:monetaryItemType",null,null,null,"duration"]
["in-bse-fin","OtherOverheadsApportionedContracts","Other overheads apportioned contracts","Other overheads apportioned contracts",null,null,null,null,null,null,"xbrli:monetaryItemType",null,null,null,"duration"]
["in-bse-fin","OverheadCostsApportionedContracts","Total overhead costs apportioned contracts","Total overhead costs apportioned contracts",null,null,null,null,null,null,"xbrli:monetaryItemType",null,null,null,"duration"]
["in-bse-fin","ContractCost","Total contract cost","Total contract cost",null,null,null,null,null,null,"xbrli:monetaryItemType",null,null,null,"duration"]
["in-bse-fin","CostDryWells","Cost dry wells","Cost dry wells",null,null,null,null,null,null,"xbrli:monetaryItemType",null,null,null,"duration"]
["in-bse-fin","OperatingAndMaintenanceCostOfEmissionAndOtherPollutionReductionEquipments","Operating and maintenance cost of emission and other pollution reduction equipments","Operating and maintenance cost of emission and other pollution reduction equipments",null,null,null,null,null,null,"xbrli:monetaryItemType",null,null,null,"duration"]
["in-bse-fin","PaymentsToAuditorAbstract","Payments to auditor [Abstract]","Payments to auditor [Abstract]",null,null,null,null,null,null,"xbrli:stringItemType",null,null,null,"duration"]
["in-bse-fin","PaymentForAuditServices","Payment for audit services","Payment for audit services",null,null,null,null,null,null,"xbrli:monetaryItemType",null,null,null,"duration"]
["in-bse-fin","PaymentForTaxationMatters","Payment for taxation matters","Payment for taxation matters",null,null,null,null,null,null,"xbrli:monetaryItemType",null,null,null,"duration"]
["in-bse-fin","PaymentForCompanyLawMatters","Payment for company law matters","Payment for company law matters",null,null,null,null,null,null,"xbrli:monetaryItemType",null,null,null,"duration"]
["in-bse-fin","PaymentForManagementServices","Payment for management services","Payment for management services",null,null,null,null,null,null,"xbrli:monetaryItemType",null,null,null,"duration"]
["in-bse-fin","PaymentForOtherServices","Payment for other services","Payment for other services",null,null,null,null,null,null,"xbrli:monetaryItemType",null,null,null,"duration"]
["in-bse-fin","PaymentForReimbursementOfExpenses","Payment for reimbursement of expenses","Payment for reimbursement of expenses",null,null,null,null,null,null,"xbrli:monetaryItemType",null,null,null,"duration"]
["in-bse-fin","PaymentsToAuditor","Total payments to auditor","Total payments to auditor",null,null,null,null,null,null,"xbrli:monetaryItemType",null,null,null,"duration"]
["in-bse-fin","PaymentsToCostAuditorAbstract","Payments to cost auditor [Abstract]","Payments to cost auditor [Abstract]",null,null,null,null,null,null,"xbrli:stringItemType",null,null,null,"duration"]
["in-bse-fin","PaymentForCostAuditCharges","Payment for cost audit charges","Payment for cost audit charges",null,null,null,null,null,null,"xbrli:monetaryItemType",null,null,null,"duration"]
["in-bse-fin","PaymentForCostComplianceReport","Payment for cost compliance report","Payment for cost compliance report",null,null,null,null,null,null,"xbrli:monetaryItemType",null,null,null,"duration"]
["in-bse-fin","PaymentForOtherCostServices","Payment for other cost services","Payment for other cost services",null,null,null,null,null,null,"xbrli:monetaryItemType",null,null,null,"duration"]
["in-bse-fin","PaymentToCostAuditorForReimbursementOfExpenses","Payment to cost auditor for reimbursement of expenses","Payment to cost auditor for reimbursement of expenses",null,null,null,null,null,null,"xbrli:monetaryItemType",null,null,null,"duration"]
["in-bse-fin","PaymentsToCostAuditor","Total payments to cost auditor","Total payments to cost auditor",null,null,null,null,null,null,"xbrli:monetaryItemType",null,null,null,"duration"]
["in-bse-fin","MiscellaneousExpenses","Miscellaneous expenses","Miscellaneous expenses",null,null,null,null,null,null,"xbrli:monetaryItemType",null,null,null,"duration"]
["in-bse-fin","OtherExpenses","Total other expenses","Total other expenses",null,null,null,null,null,null,"xbrli:monetaryItemType",null,null,null,"duration"]
["in-bse-fin","DepreciationAndAmortisationExpense","Depreciation and amortisation expense","Depreciation and amortisation expense",null,null,null,null,null,null,"xbrli:monetaryItemType",null,null,null,"duration"]
["in-bse-fin","DepreciationExpense","Depreciation","Depreciation expense",null,null,null,null,null,null,"xbrli:monetaryItemType",null,null,null,"duration"]
["in-bse-fin","AmortisationExpense","Amortisation","Amortisation expense",null,null,null,null,null,null,"xbrli:monetaryItemType",null,null,null,"duration"]
["in-bse-fin","DepreciationAmortisationExpense","Total depreciation and amortisation expense","Total depreciation and amortisation expense",null,null,null,null,null,null,"xbrli:monetaryItemType",null,null,null,"duration",null,null,null,"\"Total depreciation and amortisation expense\" must match with \"Depreciation and amortisation expense\" mentioned in sheet \"Financial Result\""]
["in-bse-fin","TaxExpensesAbstract","Tax expenses [Abstract]","Tax expenses [Abstract]",null,null,null,null,null,null,"xbrli:stringItemType",null,null,null,"duration"]
["in-bse-fin","CurrentTaxAbstract","Current tax [Abstract]","Current tax [Abstract]",null,null,null,null,null,null,"xbrli:stringItemType",null,null,null,"duration"]
["in-bse-fin","CurrentTaxPertainingToPreviousYears","Current tax pertaining to previous years","Current tax pertaining to previous years",null,null,null,null,null,null,"xbrli:monetaryItemType",null,null,null,"duration"]
["in-bse-fin","CurrentTaxPertainingToCurrentYear","Current tax pertaining to current year","Current tax pertaining to current year",null,null,null,null,null,null,"xbrli:monetaryItemType",null,null,null,"duration"]
["in-bse-fin","MATCreditRecognisedDuringYear","MAT credit recognised during year","MAT credit recognised during year",null,null,null,null,null,null,"xbrli:monetaryItemType",null,null,null,"duration"]
["in-bse-fin","CurrentTax","Total current tax","Total current tax",null,null,null,null,null,null,"xbrli:monetaryItemType",null,null,null,"duration"]
["in-bse-fin","DefferedTax","Deffered Tax","Deffered Tax",null,null,null,null,null,null,"xbrli:monetaryItemType",null,null,null,"duration"]
["in-bse-fin","TaxExpense","Total tax expenses","Total tax expenses",null,null,null,null,null,null,"xbrli:monetaryItemType",null,null,null,"duration",null,null,null,"\"Total Tax expenses\" must match with \"Tax expenses\" mentioned in sheet \"Financial Result\""]
["in-bse-fin","ExceptionalItemsAbstract","Exceptional items [Abstract]",null,null,null,null,null,null,null,"xbrli:stringItemType",null,null,null,"duration"]
["in-bse-fin","ExceptionalItemsTable","Exceptional items [Table]",null,null,null,null,null,null,null,"xbrli:stringItemType",null,null,null,"duration"]
["in-bse-fin","DetailsOfExceptionalItemsAxis","Details Of Exceptional items [Axis]",null,null,null,null,null,null,null,"xbrli:stringItemType",null,null,null,"duration"]
["in-bse-fin","ExceptionalItems1Member","Exceptional items 1 [Member]",null,null,null,null,null,null,null,"nonnum:domainItemType",null,null,null,"duration"]
["in-bse-fin","ExceptionalItems2Member","Exceptional items 2 [Member]",null,null,null,null,null,null,null,"nonnum:domainItemType",null,null,null,"duration"]
["in-bse-fin","ExceptionalItems3Member","Exceptional items 3 [Member]",null,null,null,null,null,null,null,"nonnum:domainItemType",null,null,null,"duration"]
["in-bse-fin","ExceptionalItems4Member","Exceptional items 4 [Member]",null,null,null,null,null,null,null,"nonnum:domainItemType",null,null,null,"duration"]
["in-bse-fin","ExceptionalItems5Member","Exceptional items 5 [Member]",null,null,null,null,null,null,null,"nonnum:domainItemType",null,null,null,"duration"]
["in-bse-fin","DetailsofExceptionalitemsLineItems","Details of Exceptional items [Line Items]",null,null,null,null,null,null,null,"xbrli:stringItemType",null,null,null,"duration"]
["in-bse-fin","DescriptionofExceptionalitems","Description of exceptional items","Description of exceptional items",null,null,null,null,null,null,"xbrli:stringItemType",null,null,null,"duration"]
["in-bse-fin","ExceptionalItems","Exceptional items","Amount of exceptional items",null,null,null,null,null,null,"xbrli:monetaryItemType",null,null,null,"duration"]
["in-bse-fin","ExceptionalItems","Exceptional items","Exceptional items",null,null,null,null,null,null,"xbrli:monetaryItemType",null,null,null,"duration"]
["in-bse-fin","ExtraordinaryItemsAbstract","Extraordinary items [Abstract]",null,null,null,null,null,null,null,"xbrli:stringItemType",null,null,null,"duration"]
["in-bse-fin","ExtraordinaryItemsTable","Extraordinary items [Table]",null,null,null,null,null,null,null,"xbrli:stringItemType",null,null,null,"duration"]
["in-bse-fin","DetailsOfExtraordinaryItemsAxis","Details Of Extraordinary items [Axis]",null,null,null,null,null,null,null,"xbrli:stringItemType",null,null,null,"duration"]
["in-bse-fin","ExtraordinaryItems1Member","Extraordinary items 1 [Member]",null,null,null,null,null,null,null,"nonnum:domainItemType",null,null,null,"duration"]
["in-bse-fin","ExtraordinaryItems2Member","Extraordinary items 2 [Member]",null,null,null,null,null,null,null,"nonnum:domainItemType",null,null,null,"duration"]
["in-bse-fin","ExtraordinaryItems3Member","Extraordinary items 3 [Member]",null,null,null,null,null,null,null,"nonnum:domainItemType",null,null,null,"duration"]
["in-bse-fin","ExtraordinaryItems4Member","Extraordinary items 4 [Member]",null,null,null,null,null,null,null,"nonnum:domainItemType",null,null,null,"duration"]
["in-bse-fin","ExtraordinaryItems5Member","Extraordinary items 5 [Member]",null,null,null,null,null,null,null,"nonnum:domainItemType",null,null,null,"duration"]
["in-bse-fin","DetailsofExtraordinaryitemsLineItems","Details of Extraordinary items [Line Items]",null,null,null,null,null,null,null,"xbrli:stringItemType",null,null,null,"duration"]
["in-bse-fin","DescriptionofExtraordinaryitems","Description of extraordinary items","Description of extraordinary items",null,null,null,null,null,null,"xbrli:stringItemType",null,null,null,"duration"]
["in-bse-fin","ExtraordinaryItems","Extraordinary items","Extraordinary items ",null,null,null,null,null,null,"xbrli:monetaryItemType",null,null,null,"duration"]
["in-bse-fin","ExtraordinaryItems","Extraordinary items","Amount of extraordinary items ",null,null,null,null,null,null,"xbrli:monetaryItemType",null,null,null,"duration"]
["in-bse-fin","ChangesInInventoriesOfFinishedGoodsWorkInProgressAndStockInTradeAbstract","Changes in inventories of finished goods, work-in-progress and stock-in-trade [Abstract]","Changes in inventories of finished goods, work-in-progress and stock-in-trade [Abstract]",null,null,null,null,null,null,"xbrli:stringItemType",null,null,null,"duration"]
["in-bse-fin","ChangesInInventoriesOfFinishedGoods","Changes in inventories of finished goods","Changes in inventories of finished goods",null,null,null,null,null,null,"xbrli:monetaryItemType",null,null,null,"duration"]
["in-bse-fin","ChangesInInventoriesOfWorkInProgress","Changes in inventories of work-in-progress","Changes in inventories of work-in-progress",null,null,null,null,null,null,"xbrli:monetaryItemType",null,null,null,"duration"]
["in-bse-fin","ChangesInInventoriesOfStockInTrade","Changes in inventories of stock-in-trade","Changes in inventories of stock-in-trade",null,null,null,null,null,null,"xbrli:monetaryItemType",null,null,null,"duration"]
["in-bse-fin","ChangesInOtherInventories","Changes in other inventories","Changes in other inventories",null,null,null,null,null,null,"xbrli:monetaryItemType",null,null,null,"duration"]
["in-bse-fin","ChangesInInventoriesOfFinishedGoodsWorkInProgressAndStockInTrade","Total changes in inventories of finished goods, work-in-progress and stock-in-trade","Changes in inventories of finished goods, work-in-progress and stock-in-trade",null,null,null,null,null,null,"xbrli:monetaryItemType",null,null,null,"duration",null,null,null,"\"Changes in inventories of finished goods, work-in-progress and stock-in-trade\" must match with \"Total changes in inventories of finished goods, work-in-progress and stock-in-trade\" mentioned in sheet \"Financial Result\""]
["in-bse-fin","DisclosureOfNotesOnIncomeAndExpenseExplanatoryTextBlock","Disclosure of notes on income and expense explanatory [Main]","Disclosure of notes on income and expense explanatory",null,null,null,null,null,null,"nonnum:textBlockItemType",null,null,null,"duration"]
[null,null,null,"Total exceptional items",null,null,null,null,null,null,null,null,null,null,null,null,null,null,"\"Total exceptional items\" must match with \"Exceptional items\" mentioned in sheet \"Financial Result\"",null,null,null,null,null,null,null,"\"Total exceptional items\" must match with \"Exceptional items\" mentioned in sheet \"Financial Result\""]
[null,null,null,"Total extraordinary items",null,null,null,null,null,null,null,null,null,null,null,null,null,null,"\"Total extraordinary items\" must match with \"Extraordinary items\" mentioned in sheet \"Financial Result\"",null,null,null,null,null,null,null,"\"Total extraordinary items\" must match with \"Extraordinary items\" mentioned in sheet \"Financial Result\""]

{"sheet":"Asset Liabilities","index":4,"n_rows":66,"n_cols":19,"rows_kept":66,"cut":false,"hidden":true,"merged":[[7,3,7,6],[30,5,30,6],[39,5,39,6],[40,5,40,6],[41,5,41,6],[32,5,32,6],[55,5,55,6],[23,5,23,6],[8,3,8,4],[9,3,9,4],[10,3,10,4],[11,3,11,4],[12,3,12,4],[14,5,14,6],[15,5,15,6],[13,3,13,6]]}
[]
[]
[]
[]
[]
[]
[]
[null,null,null,"Statement of Asset and Liabilities"]
[null,null,null,"Particulars",null,"Current year ended        (dd-mm-yyyy)","Previous year ended                (dd-mm-yyyy)"]
[null,null,null,"Date of start of reporting period"]
[null,null,null,"Date of end of reporting period"]
[null,null,null,"Whether results are audited or unaudited",null,{"$f":"+IF(COUNTA('General Info'!E22),'General Info'!E22,\"\")","v":"Unaudited"},null,null,null,null,null,null,null,null,null,null,null,null,"Audited"]
[null,null,null,"Nature of report standalone or consolidated",null,{"$f":"+IF(COUNTA('General Info'!E21),'General Info'!E21,\"\")","v":"Standalone"},{"$f":"+IF(COUNTA('General Info'!E21),'General Info'!E21,\"\")","v":"Standalone"},null,null,null,null,null,null,null,null,null,null,null,"Unaudited"]
[]
[null,null,null,null,"Equity and liabilities"]
[null,null,null,1,"Shareholders' funds"]
[null,null,null,null,"Share capital"]
[null,null,null,null,"Reserves and surplus"]
[null,null,null,null,"Money received against share warrants"]
[null,null,null,null,"Total shareholders' funds",{"$f":"+IF(COUNT(F17:F19),+ROUND(SUM(F17:F19),3),\"\")","v":""},{"$f":"+IF(COUNT(G15:G19),+ROUND(SUM(G15:G19),3),\"\")","v":""}]
[null,null,null,2,"Share application money pending allotment"]
[null,null,null,3,"Deferred government grants"]
[null,null,null,4,"Minority interest"]
[null,null,null,5,"Non-current liabilities"]
[null,null,null,null,"Long-term borrowings"]
[null,null,null,null,"Deferred tax liabilities (net)"]
[null,null,null,null,"Foreign currency monetary item translation difference liability account"]
[null,null,null,null,"Other long-term liabilities"]
[null,null,null,null,"Long-term provisions"]
[null,null,null,null,"Total non-current liabilities",{"$f":"+IF(COUNT(F25:F29),+ROUND(SUM(F25:F29),3),\"\")","v":""},{"$f":"+IF(COUNT(G25:G29),+ROUND(SUM(G25:G29),3),\"\")","v":""}]
[null,null,null,6,"Current liabilities"]
[null,null,null,null,"Short-term borrowings"]
[null,null,null,null,"Trade Payables"]
[null,null,null,null,"(A) Total outstanding dues of micro enterprises and small enterprises"]
[null,null,null,null,"(B) Total outstanding dues of creditors other than micro enterprises and small enterprises"]
[null,null,null,null,"Other current liabilities"]
[null,null,null,null,"Short-term provisions"]
[null,null,null,null,"Total current liabilities",{"$f":"+IF(COUNT(F32,F34:F37),SUM(F32,F34:F37),\"\")","v":""},{"$f":"+IF(COUNT(G32,G34:G37),SUM(G32,G34:G37),\"\")","v":""}]
[null,null,null,null,"Total equity and liabilities",{"$f":"+IF(COUNT(F38,F30,F20:F23),SUM(F38,F30,F20:F23),\"\")","v":""},{"$f":"+IF(COUNT(G38,G30,G20:G23),SUM(G38,G30,G20:G23),\"\")","v":""}]
[null,null,null,null,"Assets"]
[null,null,null,1,"Non-current assets "]
[null,null,null,"(i)","Fixed assets "]
[null,null,null,null,"Tangible assets"]
[null,null,null,null,"Producing properties"]
[null,null,null,null,"Intangible assets"]
[null,null,null,null,"Preproducing properties"]
[null,null,null,null,"Tangible assets capital work-in-progress"]
[null,null,null,null,"Intangible assets under development or work-in-progress"]
[null,null,null,null,"Total fixed assets",{"$f":"+IF(COUNT(F43:F48),+ROUND(SUM(F43:F48),3),\"\")","v":""},{"$f":"+IF(COUNT(G43:G48),+ROUND(SUM(G43:G48),3),\"\")","v":""}]
[null,null,null,"(ii)","Non-current investments"]
[null,null,null,"(v)","Deferred tax assets (net)"]
[null,null,null,"(vi)","Foreign currency monetary item translation difference asset account"]
[null,null,null,"(vii)","Long-term loans and advances"]
[null,null,null,"(viii)","Other non-current assets"]
[null,null,null,null,"Total non-current assets",{"$f":"+IF(COUNT(F49:F54),ROUND(SUM(F49:F54),3),\"\")","v":""},{"$f":"+IF(COUNT(G49:G54),ROUND(SUM(G49:G54),3),\"\")","v":""}]
[null,null,null,2,"Current assets"]
[null,null,null,null,"Current investments"]
[null,null,null,null,"Inventories"]
[null,null,null,null,"Trade receivables"]
[null,null,null,null,"Cash and cash equivalents"]
[null,null,null,null,"Bank balance other than cash and cash equivalents"]
[null,null,null,null,"Short-term loans and advances"]
[null,null,null,null,"Other current assets"]
[null,null,null,null,"Total current assets",{"$f":"+IF(COUNT(F57:F63),ROUND(SUM(F57:F63),3),\"\")","v":""},{"$f":"+IF(COUNT(G57:G63),ROUND(SUM(G57:G63),3),\"\")","v":""}]
[null,null,null,null,"Total assets",{"$f":"+IF(COUNT(F64,F55),SUM(F64,F55),\"\")","v":""},{"$f":"+IF(COUNT(G64,G55),SUM(G64,G55),\"\")","v":""}]
[null,null,null,null,"Disclosure of notes on assets and liabilities"]

{"sheet":"Segment","index":5,"n_rows":75,"n_cols":19,"rows_kept":75,"cut":false,"hidden":false,"merged":[[7,3,7,6],[14,5,14,6],[34,5,34,6],[57,5,57,6],[8,3,8,4],[9,3,9,4],[10,3,10,4],[11,3,11,4],[12,3,12,4],[13,5,13,6],[35,5,35,6],[56,5,56,6]]}
[]
[]
[]
[]
[]
[]
[]
[null,null,null,"Format for Reporting Segment wise Revenue, Results and Capital Employed along with the company results"]
[null,null,null,"Particulars",null,"3 months/ 6 months ended (dd-mm-yyyy)","Year to date figures for current period ended                (dd-mm-yyyy)"]
[null,null,null,"Date of start of reporting period",null,"01-04-2017","01-04-2017"]
[null,null,null,"Date of end of reporting period",null,"30-06-2017","30-06-2017"]
[null,null,null,"Whether accounts are audited or unaudited",null,{"$f":"+IF(COUNTA('General Info'!E22),'General Info'!E22,\"\")","v":"Unaudited"},"Unaudited",null,null,null,null,null,null,null,null,null,null,null,"Audited"]
[null,null,null,"Nature of report standalone or consolidated",null,{"$f":"+IF(COUNTA('General Info'!E21),'General Info'!E21,\"\")","v":"Standalone"},{"$f":"+IF(COUNTA('General Info'!E21),'General Info'!E21,\"\")","v":"Standalone"},null,null,null,null,null,null,null,null,null,null,null,"Unaudited"]
[null,null,null,1,"Segment Revenue"]
[null,null,null,null,"(net sale/income from each segment should be disclosed)"]
[null,null,null,1,null,null,{"$f":"+IF(COUNTA(F16),+F16,\"\")","v":""},null,null,null,null,null,null,null,null,null,null,null,{"$f":"+IF(COUNTA(F16),+F16,\"\")","v":""}]
[null,null,null,2,null,null,"",null,null,null,null,null,null,null,null,null,null,null,{"$f":"+IF(COUNTA(F17),+F17,\"\")","v":""}]
[null,null,null,3,null,null,"",null,null,null,null,null,null,null,null,null,null,null,""]
[null,null,null,4,null,null,"",null,null,null,null,null,null,null,null,null,null,null,""]
[null,null,null,5,null,null,"",null,null,null,null,null,null,null,null,null,null,null,""]
[null,null,null,6,null,null,"",null,null,null,null,null,null,null,null,null,null,null,""]
[null,null,null,7,null,null,"",null,null,null,null,null,null,null,null,null,null,null,""]
[null,null,null,8,null,null,"",null,null,null,null,null,null,null,null,null,null,null,""]
[null,null,null,9,null,null,"",null,null,null,null,null,null,null,null,null,null,null,""]
[null,null,null,10,null,null,"",null,null,null,null,null,null,null,null,null,null,null,""]
[null,null,null,11,null,null,"",null,null,null,null,null,null,null,null,null,null,null,""]
[null,null,null,12,null,null,"",null,null,null,null,null,null,null,null,null,null,null,""]
[null,null,null,13,null,null,"",null,null,null,null,null,null,null,null,null,null,null,""]
[null,null,null,14,null,null,"",null,null,null,null,null,null,null,null,null,null,null,""]
[null,null,null,15,null,null,"",null,null,null,null,null,null,null,null,null,null,null,""]
[null,null,null,null,"Total segment revenue",{"$f":"+IF(COUNT(F16:F30),SUM(F16:F30),\"\")","v":""},{"$f":"+IF(COUNT(G16:G30),SUM(G16:G30),\"\")","v":""},null,null,null,null,null,null,null,null,null,null,null,""]
[null,null,null,null,"Less: Inter segment revenue",null,{"$f":"+IF(COUNTA(F32),+F32,\"\")","v":""},null,null,null,null,null,null,null,null,null,null,null,""]
[null,null,null,null,"Revenue  from  operations ",{"$f":"+IF(COUNT(F31:F32),SUM(F31)-SUM(F32),\"\")","v":""},{"$f":"+IF(COUNT(G31:G32),SUM(G31)-SUM(G32),\"\")","v":""},null,null,null,null,null,null,null,null,null,null,null,""]
[null,null,null,null,null,null,null,null,null,null,null,null,null,null,null,null,null,null,""]
[null,null,null,2,"Segment Result",null,null,null,null,null,null,null,null,null,null,null,null,null,""]
[null,null,null,null,"Profit (+) / Loss (-) before tax and interest from each segment",null,null,null,null,null,null,null,null,null,null,null,null,null,""]
[null,null,null,1,{"$f":"+IF(COUNTA(E16),+E16,\"\")","v":""},null,{"$f":"+IF(COUNTA(F37),+F37,\"\")","v":""},null,null,null,null,null,null,null,null,null,null,null,""]
[null,null,null,2,{"$f":"+IF(COUNTA(E17),+E17,\"\")","v":""},null,"",null,null,null,null,null,null,null,null,null,null,null,""]
[null,null,null,3,"",null,"",null,null,null,null,null,null,null,null,null,null,null,""]
[null,null,null,4,"",null,"",null,null,null,null,null,null,null,null,null,null,null,""]
[null,null,null,5,"",null,"",null,null,null,null,null,null,null,null,null,null,null,""]
[null,null,null,6,"",null,"",null,null,null,null,null,null,null,null,null,null,null,""]
[null,null,null,7,"",null,"",null,null,null,null,null,null,null,null,null,null,null,""]
[null,null,null,8,"",null,"",null,null,null,null,null,null,null,null,null,null,null,""]
[null,null,null,9,"",null,"",null,null,null,null,null,null,null,null,null,null,null,""]
[null,null,null,10,"",null,"",null,null,null,null,null,null,null,null,null,null,null,""]
[null,null,null,11,"",null,"",null,null,null,null,null,null,null,null,null,null,null,""]
[null,null,null,12,"",null,"",null,null,null,null,null,null,null,null,null,null,null,""]
[null,null,null,13,"",null,"",null,null,null,null,null,null,null,null,null,null,null,""]
[null,null,null,14,"",null,"",null,null,null,null,null,null,null,null,null,null,null,""]
[null,null,null,15,"",null,"",null,null,null,null,null,null,null,null,null,null,null,""]
[null,null,null,null,"Total Profit before tax",{"$f":"+IF(COUNT(F37:F51),SUM(F37:F51),\"\")","v":""},{"$f":"+IF(COUNT(G37:G51),SUM(G37:G51),\"\")","v":""},null,null,null,null,null,null,null,null,null,null,null,""]
[null,null,null,null,"i. Finance cost",null,{"$f":"+IF(COUNTA(F53),+F53,\"\")","v":""},null,null,null,null,null,null,null,null,null,null,null,""]
[null,null,null,null,"ii. Other unallocable expenditure net off unallocable income",null,{"$f":"+IF(COUNTA(F54),+F54,\"\")","v":""},null,null,null,null,null,null,null,null,null,null,null,""]
[null,null,null,null,"Profit  before  tax ",{"$f":"+IF(COUNT(F52:F54),SUM(F52)-SUM(F53)-SUM(F54),\"\")","v":""},{"$f":"+IF(COUNT(G52:G54),SUM(G52)-SUM(G53)-SUM(G54),\"\")","v":""},null,null,null,null,null,null,null,null,null,null,null,""]
[null,null,null,null,null,null,null,null,null,null,null,null,null,null,null,null,null,null,""]
[null,null,null,3,"Capital Employed ",null,null,null,null,null,null,null,null,null,null,null,null,null,""]
[null,null,null,null,"(Segment Asset - Segment Liabilities)",null,null,null,null,null,null,null,null,null,null,null,null,null,""]
[null,null,null,{"$f":"+D58+1","v":1},{"$f":"+IF(COUNTA(E16),+E16,\"\")","v":""},null,{"$f":"+IF(COUNTA(F59),+F59,\"\")","v":""},null,null,null,null,null,null,null,null,null,null,null,""]
[null,null,null,2,"",null,"",null,null,null,null,null,null,null,null,null,null,null,""]
[null,null,null,3,"",null,"",null,null,null,null,null,null,null,null,null,null,null,""]
[null,null,null,4,"",null,"",null,null,null,null,null,null,null,null,null,null,null,""]
[null,null,null,5,"",null,"",null,null,null,null,null,null,null,null,null,null,null,""]
[null,null,null,6,"",null,"",null,null,null,null,null,null,null,null,null,null,null,""]
[null,null,null,7,"",null,"",null,null,null,null,null,null,null,null,null,null,null,""]
[null,null,null,8,"",null,"",null,null,null,null,null,null,null,null,null,null,null,""]
[null,null,null,9,"",null,"",null,null,null,null,null,null,null,null,null,null,null,""]
[null,null,null,{"$f":"+D67+1","v":10},"",null,"",null,null,null,null,null,null,null,null,null,null,null,""]
[null,null,null,11,"",null,"",null,null,null,null,null,null,null,null,null,null,null,""]
[null,null,null,12,"",null,"",null,null,null,null,null,null,null,null,null,null,null,""]
[null,null,null,13,"",null,"",null,null,null,null,null,null,null,null,null,null,null,""]
[null,null,null,14,"",null,"",null,null,null,null,null,null,null,null,null,null,null,""]
[null,null,null,15,"",null,"",null,null,null,null,null,null,null,null,null,null,null,""]
[null,null,null,null,"Total capital employed",{"$f":"+IF(COUNT(F59:F73),SUM(F59:F73),\"\")","v":""},{"$f":"+IF(COUNT(G59:G73),SUM(G59:G73),\"\")","v":""}]
[null,null,null,null,"Disclosure of notes on segments"]

{"sheet":"TextBlock","index":6,"n_rows":1,"n_cols":5,"rows_kept":1,"cut":false,"hidden":true,"merged":[]}
[null,null,null,null,2]